{"text_format":"1","workbook":"xlsx","n_sheets":15,"sheets":["ORDER SHEET - UPDATED","wband design","Sheet5","General Database","OPTIONS","Sheet6","Sheet7","WEB","WRISTBAND DESIGN","LABEL ","Sheet1","Sheet2","Sheet3","Sheet4","SEMI ORDERTRANSLATED"],"not_rendered":{"charts":0,"images":121,"macros":1,"external_links":2,"defined_names":131,"comments":0,"pivot_tables":0},"unopened":[],"bounds":{"document_bytes":16777216,"sheet_cells":100000,"rows_first":2000,"rows_last":500,"rows_between":2000,"halvings":0,"cell_chars":16384,"cell_head_chars":4096},"cells_cut":0,"cells_raw":0,"read":"whole","date_system":"1900"}

{"sheet":"ORDER SHEET - UPDATED","index":0,"n_rows":182,"n_cols":19,"rows_kept":182,"cut":false,"hidden":false,"merged":[[6,0,7,0],[6,1,7,1],[6,2,7,2],[50,5,52,6],[0,2,2,9],[4,0,4,9],[5,0,5,2],[5,3,5,5],[5,6,5,9],[17,3,18,4],[17,0,18,0],[17,2,18,2],[35,0,35,9],[30,0,30,9],[32,0,34,1],[32,2,34,3],[6,3,7,5],[6,6,7,9],[8,0,8,9],[9,0,10,9],[65,3,65,4],[50,9,52,9],[11,0,11,9],[12,0,13,9],[15,0,15,9],[44,5,46,6],[44,7,46,8],[41,1,43,3],[41,4,43,4],[42,7,42,9],[41,5,41,9],[43,7,43,8],[42,5,43,6],[16,3,16,4],[41,0,43,0],[50,0,52,0],[55,0,62,9],[54,0,54,9],[44,0,46,0],[44,1,46,3],[44,4,46,4],[44,9,46,9],[47,0,49,0],[47,1,49,3],[47,4,49,4],[47,5,49,6],[53,0,53,9],[47,7,49,8],[47,9,49,9],[50,1,52,3],[50,4,52,4],[50,7,52,8],[16,8,16,9],[17,8,18,9],[16,6,16,7],[17,6,18,7],[40,0,40,9],[17,1,18,1],[36,0,36,1],[31,0,31,1],[31,2,31,3],[17,5,18,5],[37,0,38,1],[36,3,36,9],[37,3,38,9],[32,9,34,9],[31,6,31,8],[32,4,34,4],[32,5,34,5],[32,6,34,8],[19,0,19,1],[20,0,20,1],[23,6,28,9],[22,0,22,9],[19,7,19,8],[20,7,20,8],[20,5,20,6],[19,5,19,6]]}
[null,null,"軟式   セレクトオーダー  (SELECT ORDER)\nRUBBERBALL GLOVE / MITT"]
[]
[]
[]
["オーダー情報 (ORDER INFORMATION):"]
["日付 (ORDER DATE)",null,null,"ナンバー (NO.)",null,null,"顧客ID/名前 (CUSTOMER ID / NAME)"]
[]
[]
["チーム/学校/ストア名 (TEAM / SCHOOL / STORE NAME)"]
[]
[]
["住所(CONTACT ADDRESS)"]
[]
[]
[]
["仕様 (SPECIFICATIONS):"]
[" タイプ (TYPE)","品番\n(MODEL)","     右・左　投 (L/R)","   基本型 (BASIC)",null,"手口バンドスタイル (WRISTBAND DESIGN)","画像 (IMAGE)",null,"スタンダード/指当て\n(FGR HOOD/FGR PATCH)"]
[null,{"$f":"IFERROR(VLOOKUP(A18,'General Database'!A127:C129,2,0), \" \")","v":" "}]
[]
["  指の長さ\n(FGR LENGTH)",null,"  指の長さ\n(FGR LENGTH)","本体 (SHELL)","カラー (COLOR)"," ウェブ (WEB) ",null,"画像 (IMAGE)",null," 数量 (QUANTITY)"]
[]
[{"$f":"IF($D$21=\"SOLID\",E21,\"\")","v":""},{"$f":"IF($C$29=\"---\",\"---\",IF(AND($D$21=C94,OR($C$29=$D$96,$C$29=$D$97, $C$29=$D$98)),$E$21,\"\"))","v":""},{"$f":"IF(AND($D$21=\"SOLID\",(COUNTIF($C$27,\"*\"&11&\"*\"))), E21, IF($C$27=\"---\",\"---\",\"\"))","v":""},{"$f":"IF($E$24=\"---\",\"---\",IF(AND($D$21=C94,OR($E$24=$F$96,$E$24=$F$97)),$E$21,\"\"))","v":""},{"$f":"IF($E$25=\"---\",\"---\",IF(AND($D$21=C94,OR($E$25=$G$96,$E$25=$G$97)),$E$21,\"\"))","v":""},{"$f":"IF($E$26=\"---\",\"---\",IF(AND($D$21=C94,OR($E$26=$H$96,$E$26=$H$97)),$E$21,\"\"))","v":""},{"$f":"IF($C$28=\"---\",\"---\",IF(AND(OR($D$21=C94,$D$21=C95),$C$28=$C$98),\"\",IF(AND($D$21=C94,OR($C$28=$C$96,$C$28=$C$97)),$E$21,\"\")))","v":""},{"$f":"IF(E28=\"---\",\"---\",IF(D21=C94,E21,\"\"))","v":""},{"$f":"IF(E27=\"---\", \"---\", IF(COUNTIF($I$18,\"*\"&$C$90&\"*\"),\"---\",IF(AND(COUNTIF($I$18,\"*\"&$C$91&\"*\"),$D$21=\"SOLID\"),$E$21,\"\")))","v":""}]
["            本体·平裏カラーの選択 (SHELL AND LINING COLORS): "]
[{"$f":"+IF($F$18<>0,(VLOOKUP($F$18,'General Database'!$B$4:Y$43,24,FALSE)),\" \")","v":" "},null,{"$f":"+IF($F$18<>0,(VLOOKUP($F$18,'General Database'!$B$4:Y$43,15,FALSE)),\" \")","v":" "},null,{"$f":"+IF($F$18<>0,(VLOOKUP($F$18,'General Database'!$B$4:Y$43,22,FALSE)),\" \")","v":" "},null,{"$f":"XGLOVE1","v":0}]
[{"$f":"+IF($F$18<>0,(VLOOKUP($F$18,'General Database'!$B$4:Y$43,9,FALSE)),\" \")","v":" "},null,{"$f":"+IF($F$18<>0,(VLOOKUP($F$18,'General Database'!$B$4:Y$43,16,FALSE)),\" \")","v":" "},null,{"$f":"+IF($F$18<>0,(VLOOKUP($F$18,'General Database'!$B$4:Y$43,23,FALSE)),\" \")","v":" "}]
[{"$f":"+IF($F$18<>0,(VLOOKUP($F$18,'General Database'!$B$4:Y$43,10,FALSE)),\" \")","v":" "},null,{"$f":"+IF($F$18<>0,(VLOOKUP($F$18,'General Database'!$B$4:Y$43,17,FALSE)),\" \")","v":" "},null,{"$f":"+IF($F$18<>0,(VLOOKUP($F$18,'General Database'!$B$4:AI$43,34,FALSE)),\" \")","v":" "}]
[{"$f":"+IF($F$18<>0,(VLOOKUP($F$18,'General Database'!$B$4:Y$43,11,FALSE)),\" \")","v":" "},null,{"$f":"+IF($F$18<>0,(VLOOKUP($F$18,'General Database'!$B$4:Y$43,18,FALSE)),\" \")","v":" "},null,{"$f":"+IF($F$18<>0,(VLOOKUP($F$18,'General Database'!$B$4:AK$43,36,FALSE)),\" \")","v":" "}]
[{"$f":"+IF($F$18<>0,(VLOOKUP($F$18,'General Database'!$B$4:Y$43,12,FALSE)),\" \")","v":" "},null,{"$f":"+IF($F$18<>0,(VLOOKUP($F$18,'General Database'!$B$4:Y$43,19,FALSE)),\" \")","v":" "},null,{"$f":"+IF($F$18<>0,(VLOOKUP($F$18,'General Database'!$B$4:AL$43,37,FALSE)),\" \")","v":" "},null,null,null,null,null,{"$f":"A28","v":" "}]
[{"$f":"+IF($F$18<>0,(VLOOKUP($F$18,'General Database'!$B$4:Y$43,13,FALSE)),\" \")","v":" "},null,{"$f":"+IF($F$18<>0,(VLOOKUP($F$18,'General Database'!$B$4:Y$43,20,FALSE)),\" \")","v":" "}]
[{"$f":"+IF($F$18<>0,(VLOOKUP($F$18,'General Database'!$B$4:Y$43,14,FALSE)),\" \")","v":" "},null,{"$f":"+IF($F$18<>0,(VLOOKUP($F$18,'General Database'!$B$4:Y$43,21,FALSE)),\" \")","v":" "}]
["OTHER GLOVE PARTS COLOR:"]
["ヘリ革(BIAS)",null," レース(LACE)",null,"ハミダシ             (WELTING)","カラー(COLOR)","土手紐通し                                                                   (#4 LACING WAY)",null,null,"ステッチ           (THREAD)"]
[]
[]
[]
["OTHER DETAILS:"]
["ラベル(LABEL)",null,"画像 (IMAGE)","特記(SPECIAL REMARKS)"]
[]
[]
[]
["              刺繍 (EMBROIDERY):"]
["① 刺繍位置\n(EMBROIDERY \nPOSITION)","② 刺繍内容 (EMBROIDERY CONTENT)",null,null,"③ 刺繍文字 \n(EMBROIDERY \nCHARACTER)","④ 刺繍カラー(EMBROIDERY COLOR)"]
[null,null,null,null,null,"単色(MAIN)",null,"（かげ・フチはオプション）"]
[null,null,null,null,null,null,null,"かげ(SHADOW)",null,"フチ(FRAME)"]
[]
[]
[]
[]
[]
[]
[]
[]
[]
[]
["特記(SPECIAL REMARKS)"]
[]
[]
[]
[]
[]
[]
[]
[]
[]
[{"$f":"'General Database'!G5","v":"無し         （NO NEED）\n"},{"$f":"'General Database'!G8","v":"指カバー  （FGR HOOD）"},{"$f":"'General Database'!G11","v":"指当て   (FGR PATCH）"}]
[null,null,null,"#4 LACING WAY",null,null,"WEBS"]
["WKG-8021型",null,null,{"$f":"'General Database'!$A$63","v":"レギュラー\n(REGULAR)"},{"$f":"'General Database'!$A$64","v":"逆巻き\n(INVERTED)"},"   ",{"$f":"#REF!","v":{"$error":"#REF!"}},{"$f":"#REF!","v":{"$error":"#REF!"}},{"$f":"#REF!","v":{"$error":"#REF!"}},{"$f":"#REF!","v":{"$error":"#REF!"}}]
["WKG-8024型",null,null,{"$f":"'General Database'!$A$63","v":"レギュラー\n(REGULAR)"},{"$f":"'General Database'!$A$64","v":"逆巻き\n(INVERTED)"},"   ",{"$f":"+#REF!","v":{"$error":"#REF!"}},{"$f":"#REF!","v":{"$error":"#REF!"}},{"$f":"#REF!","v":{"$error":"#REF!"}},{"$f":"#REF!","v":{"$error":"#REF!"}}]
["WKG-8026型",null,null,{"$f":"'General Database'!$A$63","v":"レギュラー\n(REGULAR)"},{"$f":"'General Database'!$A$64","v":"逆巻き\n(INVERTED)"},"   ",{"$f":"G68","v":{"$error":"#REF!"}},{"$f":"+H68","v":{"$error":"#REF!"}},{"$f":"+I68","v":{"$error":"#REF!"}},{"$f":"+J68","v":{"$error":"#REF!"}}]
["WKG-8028型",null,null,{"$f":"'General Database'!$A$63","v":"レギュラー\n(REGULAR)"},{"$f":"'General Database'!$A$64","v":"逆巻き\n(INVERTED)"},"   ",{"$f":"+#REF!","v":{"$error":"#REF!"}},{"$f":"+#REF!","v":{"$error":"#REF!"}},{"$f":"+#REF!","v":{"$error":"#REF!"}},{"$f":"+#REF!","v":{"$error":"#REF!"}}]
["OKG-6515型",null,null,{"$f":"'General Database'!$A$63","v":"レギュラー\n(REGULAR)"},{"$f":"'General Database'!$A$64","v":"逆巻き\n(INVERTED)"},"   ",{"$f":"+G69","v":{"$error":"#REF!"}},{"$f":"+H69","v":{"$error":"#REF!"}},{"$f":"+I69","v":{"$error":"#REF!"}},{"$f":"+J69","v":{"$error":"#REF!"}}]
["SCM-240型",null,null,{"$f":"'General Database'!$A$63","v":"レギュラー\n(REGULAR)"},null,"   ",{"$f":"+#REF!","v":{"$error":"#REF!"}},"   "]
["SFM-240型",null,null,{"$f":"'General Database'!$A$63","v":"レギュラー\n(REGULAR)"},null,"   ",{"$f":"+#REF!","v":{"$error":"#REF!"}},"   "]
["RKG-1803型",null,null,{"$f":"'General Database'!$A$63","v":"レギュラー\n(REGULAR)"},{"$f":"'General Database'!$A$64","v":"逆巻き\n(INVERTED)"},"   ",{"$f":"+G71","v":{"$error":"#REF!"}},{"$f":"+H71","v":{"$error":"#REF!"}},{"$f":"+I71","v":{"$error":"#REF!"}},{"$f":"+J71","v":{"$error":"#REF!"}}]
["RKG-1806型",null,null,{"$f":"'General Database'!$A$63","v":"レギュラー\n(REGULAR)"},{"$f":"'General Database'!$A$64","v":"逆巻き\n(INVERTED)"},"   ",{"$f":"+G74","v":{"$error":"#REF!"}},{"$f":"+H74","v":{"$error":"#REF!"}},{"$f":"+I74","v":{"$error":"#REF!"}},{"$f":"+J74","v":{"$error":"#REF!"}}]
["RKG-188M型",null,null,{"$f":"'General Database'!$A$63","v":"レギュラー\n(REGULAR)"},null,"   ",{"$f":"+#REF!","v":{"$error":"#REF!"}},"   "]
["RKG-188F型",null,null,{"$f":"'General Database'!$A$63","v":"レギュラー\n(REGULAR)"},null,"   ",{"$f":"+#REF!","v":{"$error":"#REF!"}},"   "]
[]
[]
[null,"ホワイト (GRAY)"]
[]
["SHELL COLORS"]
[null,"ベージュ\nCAMEL","オレンジ\nORANGE","イエロー\nYELLOW","ブラック\nBLACK","ナチュラル\nNATURAL","レッド\nRED","ブルー\nBLUE","ネイビー\nNAVY","ブラウン\nBROWN"]
[]
[]
[{"$f":"'General Database'!A68","v":"変更なし (REGULAR)"}]
[{"$f":"'General Database'!A69","v":"+5ｍｍ"},null,"---",null,null,{"$f":"IF(F21=\"\",\"BLNK\",\"EMPT\")","v":"BLNK"}]
[{"$f":"'General Database'!A70","v":"+１０ｍｍ"},null,"共革(本体同色) Same as Shell",null,null,{"$f":"IF(F18=\"\",\"BWBAND\",\"EMPT\")","v":"BWBAND"}]
[{"$f":"'General Database'!A71","v":"-５ｍｍ"},null,"ソフトレザー(ブラック) Soft Leather Black",null,null,{"$f":"IF(F18=\"\",\"XGLOVE\",\"EMPT\")","v":"XGLOVE"}]
[{"$f":"'General Database'!A72","v":"-１０ｍｍ"},null,"need",null,null,{"$f":"IF(A38=\"\",\"BWBAND\",\"EMPT\")","v":"BWBAND"}]
[null,null,"fgr"]
[null,null,"SOFT"]
[{"$f":"'General Database'!A90","v":"切りハミ　ホワイト (Split)"},null,"SAME"]
[{"$f":"'General Database'!A91","v":"玉ハミ (Cow Piping)"},null,"SOLID"]
[null,null,"COMBINATION"]
[null,null,"12-3RD FGR-RIGHT","11-3RD FGR-LEFT","12-LF INSIDE","15-LF OUT","16-LF LOOPS","17-WEB"]
[{"$f":"'General Database'!D85","v":"切りハミ　ホワイト (Split)"},null,"10-3RD FGR-RIGHT","13-3RD FGR-LEFT","14-LF INSIDE","13-LF OUT","14-LF LOOPS","15-WEB"]
[{"$f":"'General Database'!E85","v":"玉ハミ (Cow Piping)"},null,"17-LINING","10-LINING"]
[]
[{"$f":"#REF!","v":{"$error":"#REF!"}}]
[{"$f":"#REF!","v":{"$error":"#REF!"}}]
[]
[]
["regular","fbm","catcher","SHCOLOR",null,"BICOLOR","LACOLOR",null,null,"PICOLOR"]
["B SHELL PALM","B SHELL PALM","B SHELL PALM"]
["C THUMB LOOP","C THUMB LOOP","C DECO","ブラック BLACK",null,"ブラック BLACK","ブラック BLACK",null,null,"ベージュCAMEL"]
["D THUMB-OUT","D SHELL BACK-RIGHT","D THUMB LOOP","ベージュCAMEL",null,"ベージュCAMEL","ベージュCAMEL",null,null,"オレンジ ORANGE"]
["E THUMB-IN","E SHELL BACK-LEFT","E THUMB - 2ND FGR RIGHT","オレンジ ORANGE",null,"オレンジ ORANGE","オレンジ ORANGE",null,null,"ナチュラル NATURAL"]
["F WRISTBAND","F WRISTBAND","F BELT STRAP","イエロー YELLOW",null,"イエロー YELLOW","ナチュラルイエロー NATURAL YELLOW",null,null,"イエロー YELLOW"]
["G 1ST FGR-RIGHT","G LF LOOP","G 2ND FGR LEFT  - LF RIGHT","ナチュラル NATURAL ",null,"ナチュラル NATURAL ","ナチュラル NATURAL",null,null,"ブラック BLACK"]
["H 1ST FGR-LEFT","H TOP WEB","H LF LEFT ","レッド RED",null,"ホワイトWHITE","レッド RED",null,null,"ホワイトWHITE"]
["I 2ND FGR-RIGHT","I BOTTOM WEB","I LF LOOP","ブルー BLUE",null,"バーニングオレンジ BURNING ORANGE","ブルー BLUE",null,null,"バーニングオレンジ BURNING ORANGE"]
["J 2ND FGR-LEFT","J WEB DECO",null,"ネイビー NAVY",null,"レッド RED","ネイビー NAVY",null,null,"ブルー BLUE"]
["K 3RD FGR-RIGHT",null,null,"ブラウン BROWN",null,"ブルー BLUE","ダークブラウン DARK BROWN",null,null,"ネイビー NAVY"]
["L 3RD FGR-LEFT",null,null,"ピンクPINK",null,"ネイビー NAVY","USAタン\nUSA TAN",null,null,"ブラウン BROWN"]
["M LF-IN",null,null,"ホワイトWHITE",null,"ブラウン BROWN","ホワイトWHITE",null,null,"ピンクPINK"]
["N LF-OUT",null,null,"バーニングオレンジ BURNING ORANGE",null,"ピンクPINK","ピンクPINK",null,null,"レッド RED"]
["O LF LOOPS",null,null,null,null,"ゴールド\nGOLD",null,null,null,"ゴールド\nGOLD"]
[null,null,null,null,null,"シルバー\nSILVER",null,null,null,"シルバー\nSILVER"]
[]
[{"$f":"IF(AND($D$21=\"SOLID\",(COUNTIF($A$28,\"*\"&5&\"*\"))), E21, IF($A$28=\"---\",\"---\",\"\"))","v":""},{"$f":"IF(AND($D$21=\"SOLID\",(COUNTIF($C$30,\"*\"&12&\"*\"))), E21, IF($C$30=\"---\",\"---\",\"\"))","v":""}]
[{"$f":"IF(AND($D$21=\"SOLID\",(COUNTIF($A$29,\"*\"&6&\"*\"))), E21, IF($A$29=\"---\",\"---\",\"\"))","v":""},{"$f":"IF($C$30=\"---\",\"---\",IF(AND($D$21=C94,OR($C$30=$E$96,$C$30=$E$97)),$E$21,\"\"))","v":""}]
[]
[]
[]
[]
[]
[]
[]
[]
["OKG-1型","OKG-4型","OKG-6型","OKG-8型","OKG-5型","OKG-CM型","OKG-FM型","RKG-SM型","RKG-ML型","RKG-LLL型","RKG-CM型","RKG-FM型","BSG-G","BSG-CM","BSG-FM","OKG-1CR 型",null,null,"OKG-CMOP型"]
[]
["無し（NO NEED）","無し（NO NEED）","無し（NO NEED）","無し（NO NEED）","無し（NO NEED）","無し（NO NEED）",null,"無し（NO NEED）","無し（NO NEED）","無し（NO NEED）","無し（NO NEED）",null,"無し（NO NEED）","無し（NO NEED）",null,"無し（NO NEED）",null,null,"無し（NO NEED）"]
["スタンダード  （FGR HOOD）","スタンダード  （FGR HOOD）","スタンダード  （FGR HOOD）","スタンダード  （FGR HOOD）","スタンダード  （FGR HOOD）","スタンダード  （FGR HOOD）",null,"スタンダード （FGR HOOD）","スタンダード  （FGR HOOD）","スタンダード  （FGR HOOD）","スタンダード  （FGR HOOD）",null,"スタンダード  （FGR HOOD）","スタンダード  （FGR HOOD）",null,"スタンダード  （FGR HOOD）",null,null,"スタンダード  （FGR HOOD）"]
["指当て   (FGR PATCH）","指当て   (FGR PATCH）","指当て   (FGR PATCH）","指当て   (FGR PATCH）","指当て   (FGR PATCH）",null,null,"指当て   (FGR PATCH）","指当て   (FGR PATCH）","指当て   (FGR PATCH）",null,null,"指当て   (FGR PATCH）",null,null,"指当て   (FGR PATCH）"]
[]
["A133:A136","B133:B136","C133:C136","D133:D136","E133:E136","F133:F136",null,"H133:H136","I133:I136","J133:J136","K133:K136",null,"M133:M136","N133:N136",null,"P133:P136",null,null,"S133:S136"]
[]
[]
["Month","Date","Year"]
["Jan",1,2020]
["Feb",2,2021]
["Mar",3,2022]
["Apr",4,2023]
["May",5,2024]
["Jun",6,2025]
["Jul",7]
["Aug",8]
["Sep",9]
["Oct",10]
["Nov",11]
["Dec",12]
[null,13]
[null,14]
[null,15]
[null,16]
[null,17]
[null,18]
[null,19]
[null,20]
[null,21]
[null,22]
[null,23]
[null,24]
[null,25]
[null,26]
[null,27]
[null,28]
[null,29]
[null,30]
[null,31]
[]
[]
[]
[]
[]
["OKG-1型","OKG-4型","OKG-6型","OKG-8型","OKG-5型","OKG-CM型","OKG-FM型","RKG-SM型","RKG-ML型","RKG-LLL型","RKG-CM型","RKG-FM型","BSG-G","BSG-CM","BSG-FM","OKG-1CR 型"]
[]
["加工する(NEED )","加工する(NEED )","加工する(NEED )","加工する(NEED )","加工する(NEED )",null,null,"加工する(NEED )","加工する(NEED )","加工する(NEED )",null,null,"加工する(NEED )",null,null,"加工する(NEED )"]
["加工しない (NO NEED)","加工しない (NO NEED)","加工しない (NO NEED)","加工しない (NO NEED)","加工しない (NO NEED)",null,null,"加工しない (NO NEED)","加工しない (NO NEED)","加工しない (NO NEED)",null,null,"加工しない (NO NEED)",null,null,"加工しない (NO NEED)"]
[]
["A179:A181","B179:B181","C179:C181","D179:D181","E179:E181",null,null,"H179:H181","I179:I181","J179:J181",null,null,"M179:M181",null,null,"P179:P181"]

{"sheet":"wband design","index":1,"n_rows":11,"n_cols":3,"rows_kept":11,"cut":false,"hidden":true,"merged":[]}
["WRISTBAND DESIGN","IMAGE",{"$f":"+'ORDER SHEET - UPDATED'!$F$18","v":0}]
["REGULAR"]
["1-PC THUMB WRISTBAND"]
["REGULAR -(1CR)"]
["1-PC THUMB WRISTBAND -(1CR)"]
["SIDE BAND"]
["SIDE BAND -(1CR)"]
["REGULAR -(CM)"]
["REGULAR -(FM)"]
["SIDE BAND -(FM)"]
["CONVENTIONAL -(CM)"]

{"sheet":"Sheet5","index":2,"n_rows":13,"n_cols":5,"rows_kept":13,"cut":false,"hidden":true,"merged":[]}
[null,"SHELL","BIAS","LACE","WELTING"]
["Ｆオレンジ\nF. ORANGE #52","ブラック BLACK","ブラック BLACK","ブラック BLACK","Ｆオレンジ\nF.ORANGE"]
["オレンジ\nORANGE #51","\nファイアーオレンジ FIRE ORANGE","\nファイアーオレンジ FIRE ORANGE","\nファイアーオレンジ FIRE ORANGE","オレンジ\nORANGE"]
["イエロー\nYELLOW #40","オレンジ ORANGE","オレンジ ORANGE","オレンジ ORANGE","ナチュラル\nNATURAL"]
["ブラック\nBLACK #09","イエロー YELLOW","イエロー YELLOW","ナチュラルイエロー NATURAL YELLOW","イエロー\nYELLOW"]
["ナチュラル\nNATURAL #47","ナチュラル NATURAL ","ナチュラル NATURAL ","ナチュラル NATURAL","ブラック\nBLACK"]
["レッド\nRED #62","レッド RED","ホワイトWHITE","レッド RED","ホワイト\nWHITE"]
["ブルー\nBLUE #22","ブルー BLUE","レッド RED","ブルー BLUE","ブルー\nBLUE"]
["ネイビー\nNAVY #29","ネイビー NAVY","ブルー BLUE","ネイビー NAVY","ネイビー\nNAVY"]
["ブラウン BROWN","ブラウン BROWN","ネイビー NAVY","ダークブラウン DARK BROWM","ブラウン\nBROWN"]
["ピンク PINK","ピンクPINK","ブラウン BROWN","USAタン\nUSA TAN","ピンク\nPINK"]
["ホワイトWHITE","ホワイトWHITE","ピンクPINK","ホワイトWHITE","レッド RED"]
["ゴールド\nGOLD",null,"ゴールド\nGOLD","ピンクPINK","ゴールド\nGOLD"]

{"sheet":"General Database","index":3,"n_rows":129,"n_cols":38,"rows_kept":129,"cut":false,"hidden":true,"merged":[]}
["SELECTIONS"]
[null,null,null,null,null,null,null,null,null,null,null,null,null,null,null,null,null,null,null,null,null,null,null,null,null,"1-SHELL"]
["BASIC PATTERN","WRISTBAND DESIGN","POSITION","②FINGER COVER","⑥WEB","⑦#4 LACING WAY",null,"⑦WELTING","⑫LINING COLOR","2-COLOR","3-COLOR","4-COLOR",null,null,"5-COLOR","6-COLOR","4-COLOR","4-COLOR","4-COLOR","4-COLOR","4-COLOR","4-COLOR","4-COLOR","4-COLOR","4-COLOR","4-COLOR","4-COLOR","4-COLOR",null,null,null,null,null,null,"WRISTBAND DESIGN"]
[]
["OKG-1型","REGULAR","投手 \n(PITCHER)","A64:C64","F66:K66","C75:E75","無し         （NO NEED）\n","A96:A98","S69:T69","2-THUMB LOOP","3-THUMB OUT","4-THUMB-IN","---","---","5-WRISTBAND","6-1ST FGR-RIGHT","7-1ST FGR-LEFT","8- 2ND FGR-RIGHT","9-2ND FGR-LEFT","10-3RD FGR-RIGHT","11-3RD FGR-LEFT","12-LF INSIDE","13-LF OUT","14-LF LOOPS","1-SHELL PALM","D105:D115","D108:D118","D108:D118","共革(本体同色) Same as Shell","D108:D118","D108:D118",null,"切りハミ　ホワイト (Split)",null,"15-WEB","無し（NO NEED）","16-FGR HOOD/PATCH","17-LINING"]
[null,"1-PC THUMB WRISTBAND","投手 \n(PITCHER)","A64:C64","F66:K66","C75:E75","無し         （NO NEED）\n","A96:A98","S69:T69","2-THUMB LOOP","3-THUMB OUT","4-THUMB-IN","5-THUMB-IN MIDDLE","6-THUMB-IN CENTER","7-WRISTBAND","8-1ST FGR-RIGHT","9-1ST FGR-LEFT","10- 2ND FGR-RIGHT","11-2ND FGR-LEFT","12-3RD FGR-RIGHT","13-3RD FGR-LEFT","14-LF INSIDE","15-LF OUT","16-LF LOOPS","1-SHELL PALM","D105:D115","D108:D118","D108:D118",null,null,"D108:D118",null,null,null,"17-WEB","無し（NO NEED）","18-FGR HOOD/PATCH","19-LINING"]
[null,"SIDE BAND","投手 \n(PITCHER)","A64:C64","F66:K66","C75:E75","無し         （NO NEED）\n","A96:A98","S69:T69","2-THUMB LOOP","3-THUMB OUT","4-THUMB-IN WRISTBAND","---","---","---","5-1ST FGR-RIGHT","6-1ST FGR-LEFT","7- 2ND FGR-RIGHT","8-2ND FGR-LEFT","9-3RD FGR-RIGHT","10-3RD FGR-LEFT","11-LF INSIDE","12-LF OUT","13-LF LOOPS","1-SHELL PALM","D105:D115","D108:D118","D108:D118",null,null,"D108:D118",null,null,null,"14-WEB","無し（NO NEED）","15-FGR HOOD/PATCH","16-LINING"]
["OKG-4型","REGULAR","内野手小 \n(INFIELDER-SMALL)","A64:C64","F67:Q67","C75:E75","指カバー  （FGR HOOD）","A96:A98","S69:T69","2-THUMB LOOP","3-THUMB OUT","4-THUMB-IN","---","---","5-WRISTBAND","6-1ST FGR-RIGHT","7-1ST FGR-LEFT","8- 2ND FGR-RIGHT","9-2ND FGR-LEFT","10-3RD FGR-RIGHT","11-3RD FGR-LEFT","12-LF INSIDE","13-LF OUT","14-LF LOOPS","1-SHELL PALM","D105:D115","D108:D118","D108:D118","ソフトレザー(ブラック) Soft Leather Black",null,"D108:D118","D108:D118","玉ハミ (Cow Piping)","D108:D118","15-WEB","指カバー  （FGR HOOD）","16-FGR HOOD/PATCH","17-LINING"]
[null,"1-PC THUMB WRISTBAND","内野手小 \n(INFIELDER-SMALL)","A64:C64","F67:Q67","C75:E75","指カバー  （FGR HOOD）","A96:A98","S69:T69","2-THUMB LOOP","3-THUMB OUT","4-THUMB-IN","5-THUMB-IN MIDDLE","6-THUMB-IN CENTER","7-WRISTBAND","8-1ST FGR-RIGHT","9-1ST FGR-LEFT","10- 2ND FGR-RIGHT","11-2ND FGR-LEFT","12-3RD FGR-RIGHT","13-3RD FGR-LEFT","14-LF INSIDE","15-LF OUT","16-LF LOOPS","1-SHELL PALM","D105:D115","D108:D118","D108:D118",null,null,"D108:D118",null,null,null,"17-WEB","無し（NO NEED）","18-FGR HOOD/PATCH","19-LINING"]
[null,"SIDE BAND","内野手小 \n(INFIELDER-SMALL)","A64:C64","F67:Q67","C75:E75","指カバー  （FGR HOOD）","A96:A98","S69:T69","2-THUMB LOOP","3-THUMB OUT","4-THUMB-IN WRISTBAND","---","---","---","5-1ST FGR-RIGHT","6-1ST FGR-LEFT","7- 2ND FGR-RIGHT","8-2ND FGR-LEFT","9-3RD FGR-RIGHT","10-3RD FGR-LEFT","11-LF INSIDE","12-LF OUT","13-LF LOOPS","1-SHELL PALM","D105:D115","D108:D118","D108:D118",null,null,"D108:D118",null,null,null,"14-WEB","無し（NO NEED）","15-FGR HOOD/PATCH","16-LINING"]
["OKG-6型","REGULAR","内野手 \n(INFIELDER )","A64:C64","F67:Q67","C75:E75","指当て   (FGR PATCH）","A96:A98","S69:T69","2-THUMB LOOP","3-THUMB OUT","4-THUMB-IN","---","---","5-WRISTBAND","6-1ST FGR-RIGHT","7-1ST FGR-LEFT","8- 2ND FGR-RIGHT","9-2ND FGR-LEFT","10-3RD FGR-RIGHT","11-3RD FGR-LEFT","12-LF INSIDE","13-LF OUT","14-LF LOOPS","1-SHELL PALM","D105:D115","D108:D118","D105:D115",null,null,"D108:D118","D108:D118",null,null,"15-WEB","指当て   (FGR PATCH）","16-FGR HOOD/PATCH","17-LINING"]
[null,"1-PC THUMB WRISTBAND","内野手 \n(INFIELDER )","A64:C64","F67:Q67","C75:E75","指当て   (FGR PATCH）","A96:A98","S69:T69","2-THUMB LOOP","3-THUMB OUT","4-THUMB-IN","5-THUMB-IN MIDDLE","6-THUMB-IN CENTER","7-WRISTBAND","8-1ST FGR-RIGHT","9-1ST FGR-LEFT","10- 2ND FGR-RIGHT","11-2ND FGR-LEFT","12-3RD FGR-RIGHT","13-3RD FGR-LEFT","14-LF INSIDE","15-LF OUT","16-LF LOOPS","1-SHELL PALM","D105:D115","D108:D118","D108:D118",null,null,"D108:D118",null,null,null,"17-WEB","無し（NO NEED）","18-FGR HOOD/PATCH","19-LINING"]
[null,"SIDE BAND","内野手 \n(INFIELDER )","A64:C64","F67:Q67","C75:E75","指当て   (FGR PATCH）","A96:A98","S69:T69","2-THUMB LOOP","3-THUMB OUT","4-THUMB-IN WRISTBAND","---","---","---","5-1ST FGR-RIGHT","6-1ST FGR-LEFT","7- 2ND FGR-RIGHT","8-2ND FGR-LEFT","9-3RD FGR-RIGHT","10-3RD FGR-LEFT","11-LF INSIDE","12-LF OUT","13-LF LOOPS","1-SHELL PALM","D105:D115","D108:D118","D108:D118",null,null,"D108:D118",null,null,null,"14-WEB","無し（NO NEED）","15-FGR HOOD/PATCH","16-LINING"]
["OKG-8型","REGULAR","外野手 \n(OUTFIELDER)","A64:C64","F67:Q67","C75:E75",null,"A96:A98","S69:T69","2-THUMB LOOP","3-THUMB OUT","4-THUMB-IN","---","---","5-WRISTBAND","6-1ST FGR-RIGHT","7-1ST FGR-LEFT","8- 2ND FGR-RIGHT","9-2ND FGR-LEFT","10-3RD FGR-RIGHT","11-3RD FGR-LEFT","12-LF INSIDE","13-LF OUT","14-LF LOOPS","1-SHELL PALM","D105:D115","D108:D118","D105:D115",null,null,"D108:D118",null,null,null,"15-WEB","OKG-CM型","16-FGR HOOD/PATCH","17-LINING"]
[null,"1-PC THUMB WRISTBAND","外野手 \n(OUTFIELDER)","A64:C64","F67:Q67","C75:E75",null,"A96:A98","S69:T69","2-THUMB LOOP","3-THUMB OUT","4-THUMB-IN","5-THUMB-IN MIDDLE","6-THUMB-IN CENTER","7-WRISTBAND","8-1ST FGR-RIGHT","9-1ST FGR-LEFT","10- 2ND FGR-RIGHT","11-2ND FGR-LEFT","12-3RD FGR-RIGHT","13-3RD FGR-LEFT","14-LF INSIDE","15-LF OUT","16-LF LOOPS","1-SHELL PALM","D105:D115","D108:D118","D108:D118",null,null,"D108:D118",null,null,null,"17-WEB","無し（NO NEED）","18-FGR HOOD/PATCH","19-LINING"]
[null,"SIDE BAND","外野手 \n(OUTFIELDER)","A64:C64","F67:Q67","C75:E75",null,"A96:A98","S69:T69","2-THUMB LOOP","3-THUMB OUT","4-THUMB-IN WRISTBAND","---","---","---","5-1ST FGR-RIGHT","6-1ST FGR-LEFT","7- 2ND FGR-RIGHT","8-2ND FGR-LEFT","9-3RD FGR-RIGHT","10-3RD FGR-LEFT","11-LF INSIDE","12-LF OUT","13-LF LOOPS","1-SHELL PALM","D105:D115","D108:D118","D108:D118",null,null,"D108:D118",null,null,null,"14-WEB","無し（NO NEED）","15-FGR HOOD/PATCH","16-LINING"]
["OKG-5型","REGULAR","ｵｰﾙﾗｳﾝﾄﾞ \n(ALL ROUND)","A64:C64","F70:Q70","C75:E75",null,"A96:A98","S69:T69","2-THUMB LOOP","3-THUMB OUT","4-THUMB-IN","---","---","5-WRISTBAND","6-1ST FGR-RIGHT","7-1ST FGR-LEFT","8- 2ND FGR-RIGHT","9-2ND FGR-LEFT","10-3RD FGR-RIGHT","11-3RD FGR-LEFT","12-LF INSIDE","13-LF OUT","14-LF LOOPS","1-SHELL PALM","D105:D115","D108:D118","D105:D115",null,null,"D108:D118",null,null,null,"15-WEB","OKG-FM型","16-FGR HOOD/PATCH","17-LINING"]
[null,"1-PC THUMB WRISTBAND","ｵｰﾙﾗｳﾝﾄﾞ \n(ALL ROUND)","A64:C64","F70:Q70","C75:E75",null,"A96:A98","S69:T69","2-THUMB LOOP","3-THUMB OUT","4-THUMB-IN","5-THUMB-IN MIDDLE","6-THUMB-IN CENTER","7-WRISTBAND","8-1ST FGR-RIGHT","9-1ST FGR-LEFT","10- 2ND FGR-RIGHT","11-2ND FGR-LEFT","12-3RD FGR-RIGHT","13-3RD FGR-LEFT","14-LF INSIDE","15-LF OUT","16-LF LOOPS","1-SHELL PALM","D105:D115","D108:D118","D108:D118",null,null,"D108:D118",null,null,null,"17-WEB","無し（NO NEED）","18-FGR HOOD/PATCH","19-LINING"]
[null,"SIDE BAND","ｵｰﾙﾗｳﾝﾄﾞ \n(ALL ROUND)","A64:C64","F70:Q70","C75:E75",null,"A96:A98","S69:T69","2-THUMB LOOP","3-THUMB OUT","4-THUMB-IN WRISTBAND","---","---","---","5-1ST FGR-RIGHT","6-1ST FGR-LEFT","7- 2ND FGR-RIGHT","8-2ND FGR-LEFT","9-3RD FGR-RIGHT","10-3RD FGR-LEFT","11-LF INSIDE","12-LF OUT","13-LF LOOPS","1-SHELL PALM","D105:D115","D108:D118","D108:D118",null,null,"D108:D118",null,null,null,"14-WEB","無し（NO NEED）","15-FGR HOOD/PATCH","16-LINING"]
["OKG-CMOP型","CONVENTIONAL -(CM)","捕手 \n(CATCHER)","B64","F71:G71","C73:D73",null,"A96:A98",null,"2-DECO","3-THUMB LOOP","4-LF LOOP","---","---","5- WRISTBAND","6-THUMB - 2ND FGR RIGHT","7-2ND FGR LEFT  - LF RIGHT","8-LF LEFT","9-FGR HOOD","10-LINING PALM","11-WEB","---","---","---","1-SHELL PALM","D105:D115",null,"D116:D116"]
["OKG-CM型","REGULAR -(CM)","捕手 \n(CATCHER)","B64","F71:G71","C73:D73",null,"A96:A98",null,"2-DECO","3-THUMB LOOP","4-BELT STRAP","---","---","5-THUMB - 2ND FGR RIGHT","6-2ND FGR LEFT  - LF RIGHT","7-LF LEFT ","8-LF LOOP","9-WEB","---","---","---","---","---","1-SHELL PALM","D105:D115",null,"D116:D116",null,null,"D108:D118",null,null,null,"---","RKG-CM型","16-FGR HOOD/PATCH","---"]
["OKG-FM型","REGULAR -(FM)","一塁手 \n(FIRST BASEMAN)","C63:C64","F72:G72","C73:D73",null,null,"S69:T69","2-THUMB LOOP","3-SHELL BACK-RIGHT","4-SHELL BACK-LEFT","---","---","5-WRISTBAND","6-LF LOOP","7-TOP WEB","8-BOTTOM WEB","9-WEB DECO","---","10-LINING","---","---","---","1-SHELL PALM","D105:D115","D108:D118","D105:D115",null,null,"D108:D118",null,null,null,"---","RKG-FM型","---","---"]
[null,"SIDE BAND -(FM)","一塁手 \n(FIRST BASEMAN)","C63:C64","F72:G72","C73:D73",null,null,"S69:T69","2-THUMB LOOP","3-SHELL BACK-WRISTBAND RIGHT","4-SHELL BACK-LEFT","---","---","---","5-LF LOOP","6-TOP WEB","7-BOTTOM WEB","8-WEB DECO","---","10-LINING","---","---","---","1-SHELL PALM","D105:D115","D108:D118","D105:D115",null,null,"D108:D118",null,null,null,"---","RKG-FM型","---","---"]
["RKG-ML型","REGULAR","少年Ｍ寸 \n(JUNIOR - M-L SIZE)","A64:C64","F74:Q74","C75:E75",null,"A96:A98","S69:T69","2-THUMB LOOP","3-THUMB OUT","4-THUMB-IN","---","---","5-WRISTBAND","6-1ST FGR-RIGHT","7-1ST FGR-LEFT","8-2ND FGR-RIGHT","9-2ND FGR-LEFT","10-3RD FGR-RIGHT","11-3RD FGR-LEFT","12-LF INSIDE","13-LF OUT","14-LF LOOPS","1-SHELL PALM","D105:D115","D108:D118","D105:D115",null,null,"D108:D118",null,null,null,"15-WEB",null,"16-FGR HOOD/PATCH","17-LINING"]
[null,"1-PC THUMB WRISTBAND","少年Ｍ寸 \n(JUNIOR - M-L SIZE)","A64:C64","F74:Q74","C75:E75",null,"A96:A98","S69:T69","2-THUMB LOOP","3-THUMB OUT","4-THUMB-IN","5-THUMB-IN MIDDLE","6-THUMB-IN CENTER","7-WRISTBAND","8-1ST FGR-RIGHT","9-1ST FGR-LEFT","10-2ND FGR-RIGHT","11-2ND FGR-LEFT","12-3RD FGR-RIGHT","13-3RD FGR-LEFT","14-LF INSIDE","15-LF OUT","16-LF LOOPS","1-SHELL PALM","D105:D115","D108:D118","D105:D115",null,null,"D108:D118",null,null,null,"17-WEB",null,"18-FGR HOOD/PATCH","19-LINING"]
[null,"SIDE BAND","少年Ｍ寸 \n(JUNIOR - M-L SIZE)","A64:C64","F74:Q74","C75:E75",null,"A96:A98","S69:T69","2-THUMB LOOP","3-THUMB OUT","4-THUMB-IN WRISTBAND","---","---","---","5-1ST FGR-RIGHT","6-1ST FGR-LEFT","7- 2ND FGR-RIGHT","8-2ND FGR-LEFT","9-3RD FGR-RIGHT","10-3RD FGR-LEFT","11-LF INSIDE","12-LF OUT","13-LF LOOPS","1-SHELL PALM","D105:D115","D108:D118","D108:D118",null,null,"D108:D118",null,null,null,"14-WEB","無し（NO NEED）","15-FGR HOOD/PATCH","16-LINING"]
["RKG-SM型","REGULAR","少年Ｓ寸 \n(JUNIOR - S-M SIZE)","A64:C64","F74:Q74","C75:E75",null,"A96:A98","S69:T69","2-THUMB LOOP","3-THUMB OUT","4-THUMB-IN","---","---","5-WRISTBAND","6-1ST FGR-RIGHT","7-1ST FGR-LEFT","8-2ND FGR-RIGHT","9-2ND FGR-LEFT","10-3RD FGR-RIGHT","11-3RD FGR-LEFT","12-LF INSIDE","13-LF OUT","14-LF LOOPS","1-SHELL PALM","D105:D115","D108:D118","D105:D115",null,null,"D108:D118",null,null,null,"15-WEB",null,"16-FGR HOOD/PATCH","17-LINING"]
[null,"1-PC THUMB WRISTBAND","少年Ｓ寸 \n(JUNIOR - S-M SIZE)","A64:C64","F74:Q74","C75:E75",null,"A96:A98","S69:T69","2-THUMB LOOP","3-THUMB OUT","4-THUMB-IN","5-THUMB-IN MIDDLE","6-THUMB-IN CENTER","7-WRISTBAND","8-1ST FGR-RIGHT","9-1ST FGR-LEFT","10- 2ND FGR-RIGHT","11-2ND FGR-LEFT","12-3RD FGR-RIGHT","13-3RD FGR-LEFT","14-LF INSIDE","15-LF OUT","16-LF LOOPS","1-SHELL PALM","D105:D115","D108:D118","D105:D115",null,null,"D108:D118",null,null,null,"17-WEB",null,"18-FGR HOOD/PATCH","19-LINING"]
[null,"SIDE BAND","少年Ｓ寸 \n(JUNIOR - S-M SIZE)","A64:C64","F74:Q74","C75:E75",null,"A96:A98","S69:T69","2-THUMB LOOP","3-THUMB OUT","4-THUMB-IN WRISTBAND","---","---","---","5-1ST FGR-RIGHT","6-1ST FGR-LEFT","7- 2ND FGR-RIGHT","8-2ND FGR-LEFT","9-3RD FGR-RIGHT","10-3RD FGR-LEFT","11-LF INSIDE","12-LF OUT","13-LF LOOPS","1-SHELL PALM","D105:D115","D108:D118","D108:D118",null,null,"D108:D118",null,null,null,"14-WEB","無し（NO NEED）","15-FGR HOOD/PATCH","16-LINING"]
["RKG-LLL型","REGULAR","少年Ｓ寸 \n(JUNIOR - L-LL SIZE)","A64:C64","F74:Q74","C75:E75",null,"A96:A98","S69:T69","2-THUMB LOOP","3-THUMB OUT","4-THUMB-IN","---","---","5-WRISTBAND","6-1ST FGR-RIGHT","7-1ST FGR-LEFT","8-2ND FGR-RIGHT","9-2ND FGR-LEFT","10-3RD FGR-RIGHT","11-3RD FGR-LEFT","12-LF INSIDE","13-LF OUT","14-LF LOOPS","1-SHELL PALM","D105:D115","D108:D118","D105:D115",null,null,"D108:D118",null,null,null,"15-WEB",null,"16-FGR HOOD/PATCH","17-LINING"]
[null,"1-PC THUMB WRISTBAND","少年Ｓ寸 \n(JUNIOR - L-LL SIZE)","A64:C64","F74:Q74","C75:E75",null,"A96:A98","S69:T69","2-THUMB LOOP","3-THUMB OUT","4-THUMB-IN","5-THUMB-IN MIDDLE","6-THUMB-IN CENTER","7-WRISTBAND","8-1ST FGR-RIGHT","9-1ST FGR-LEFT","10- 2ND FGR-RIGHT","11-2ND FGR-LEFT","12-3RD FGR-RIGHT","13-3RD FGR-LEFT","14-LF INSIDE","15-LF OUT","16-LF LOOPS","1-SHELL PALM","D105:D115","D108:D118","D105:D115",null,null,"D108:D118",null,null,null,"17-WEB",null,"18-FGR HOOD/PATCH","19-LINING"]
[null,"SIDE BAND","少年Ｓ寸 \n(JUNIOR - L-LL SIZE)","A64:C64","F74:Q74","C75:E75",null,"A96:A98","S69:T69","2-THUMB LOOP","3-THUMB OUT","4-THUMB-IN WRISTBAND","---","---","---","5-1ST FGR-RIGHT","6-1ST FGR-LEFT","7- 2ND FGR-RIGHT","8-2ND FGR-LEFT","9-3RD FGR-RIGHT","10-3RD FGR-LEFT","11-LF INSIDE","12-LF OUT","13-LF LOOPS","1-SHELL PALM","D105:D115","D108:D118","D108:D118",null,null,"D108:D118",null,null,null,"14-WEB","無し（NO NEED）","15-FGR HOOD/PATCH","16-LINING"]
["RKG-CM型","REGULAR -(CM)","少年捕手 \n(JUNIOR - CATCHER)","B64","F71:G71","C73:D73",null,"A96:A98",null,"2-DECO","3-THUMB LOOP","4-BELT STRAP","---","---","5-THUMB - 2ND FGR RIGHT","6-2ND FGR LEFT  - LF RIGHT","7-LF LEFT ","8-LF LOOP","9-WEB","---","---","---","---","---","1-SHELL PALM","D105:D115",null,null,null,null,"D108:D118",null,null,null,"---",null,"---","---"]
["RKG-FM型","REGULAR -(FM)","少年一塁手 \n(JUNIOR - FIRST BASEMAN)","C63:C64","F72:G72","C73:D73",null,null,"S69:T69","2-THUMB LOOP","3-SHELL BACK-RIGHT","4-SHELL BACK-LEFT"," ---"," ---","5-WRISTBAND","6-LF LOOP","7-TOP WEB","8-BOTTOM WEB","9-WEB DECO","---","10-LINING","---","---","---","1-SHELL PALM","D105:D115","D108:D118",null,null,null,null,null,null,null,"---",null,"---","---"]
["OKG-1CR 型","REGULAR -(1CR)","投手 \n(PITCHER)",null,null,"C75:E75",null,"A96:A98",null,"2-THUMB LOOP","3-THUMB OUT","4-THUMB-IN","---","---","5-WRISTBAND","6-1ST FGR-WING TIP","7-1ST FGR-LEFT","8- 2ND FGR-RIGHT","9-2ND FGR-LEFT","10-3RD FGR-RIGHT","11-3RD FGR-LEFT","12-LF INSIDE","13-LF OUT","14-LF LOOPS","1-SHELL PALM","D105:D115","D108:D118","D108:D118",null,null,"D108:D118",null,null,null,"15-WEB",null,"16-FGR HOOD/PATCH","17-LINING"]
[null,"1-PC THUMB WRISTBAND -(1CR)","投手 \n(PITCHER)",null,null,"C75:E75",null,"A96:A98",null,"2-THUMB LOOP","3-THUMB OUT","4-THUMB-IN","5-THUMB-IN MIDDLE","6-THUMB-IN CENTER","7-WRISTBAND","8-1ST FGR-WING TIP","9-1ST FGR-LEFT","10- 2ND FGR-RIGHT","11-2ND FGR-LEFT","12-3RD FGR-RIGHT","13-3RD FGR-LEFT","14-LF INSIDE","15-LF OUT","16-LF LOOPS","1-SHELL PALM","D105:D115","D108:D118","D108:D118",null,null,"D108:D118",null,null,null,"17-WEB",null,"18-FGR HOOD/PATCH","19-LINING"]
[null,"SIDE BAND -(1CR)","投手 \n(PITCHER)",null,null,"C75:E75",null,"A96:A98",null,"2-THUMB LOOP","3-THUMB OUT","4-THUMB-IN WRISTBAND","---","---","---","5-1ST FGR-WING TIP","6-1ST FGR-LEFT","7- 2ND FGR-RIGHT","8-2ND FGR-LEFT","9-3RD FGR-RIGHT","10-3RD FGR-LEFT","11-LF INSIDE","12-LF OUT","13-LF LOOPS","1-SHELL PALM","D105:D115","D108:D118","D108:D118",null,null,"D108:D118",null,null,null,"14-WEB",null,"15-FGR HOOD/PATCH","16-LINING"]
["BSG-G","REGULAR",null,null,null,"C75:E75",null,"A96:A98",null,"2-THUMB LOOP","3-THUMB OUT","4-THUMB-IN","---","---","5-WRISTBAND","6-1ST FGR-RIGHT","7-1ST FGR-LEFT","8- 2ND FGR-RIGHT","9-2ND FGR-LEFT","10-3RD FGR-RIGHT","11-3RD FGR-LEFT","12-LF INSIDE","13-LF OUT","14-LF LOOPS","1-SHELL PALM","D105:D115","D108:D118","D108:D118",null,null,"D108:D118",null,null,null,"15-WEB",null,"16-FGR HOOD/PATCH","17-LINING"]
[null,"1-PC THUMB WRISTBAND",null,null,null,"C75:E75",null,"A96:A98",null,"2-THUMB LOOP","3-THUMB OUT","4-THUMB-IN","5-THUMB-IN MIDDLE","6-THUMB-IN CENTER","7-WRISTBAND","8-1ST FGR-RIGHT","9-1ST FGR-LEFT","10- 2ND FGR-RIGHT","11-2ND FGR-LEFT","12-3RD FGR-RIGHT","13-3RD FGR-LEFT","14-LF INSIDE","15-LF OUT","16-LF LOOPS","1-SHELL PALM","D105:D115","D108:D118","D108:D118",null,null,"D108:D118",null,null,null,"17-WEB",null,"18-FGR HOOD/PATCH","19-LINING"]
[null,"SIDE BAND",null,null,null,"C75:E75",null,"A96:A98",null,"2-THUMB LOOP","3-THUMB OUT","4-THUMB-IN WRISTBAND","---","---","---","5-1ST FGR-RIGHT","6-1ST FGR-LEFT","7- 2ND FGR-RIGHT","8-2ND FGR-LEFT","9-3RD FGR-RIGHT","10-3RD FGR-LEFT","11-LF INSIDE","12-LF OUT","13-LF LOOPS","1-SHELL PALM","D105:D115","D108:D118","D108:D118",null,null,"D108:D118",null,null,null,"14-WEB","無し（NO NEED）","15-FGR HOOD/PATCH","16-LINING"]
["BSG-CM","REGULAR -(CM)",null,null,null,"C73:D73",null,"A96:A98",null,"2-DECO","3-THUMB LOOP","4-BELT STRAP","---","---","5-THUMB - 2ND FGR RIGHT","6-2ND FGR LEFT  - LF RIGHT","7-LF LEFT ","8-LF LOOP","9-WEB","---","---","---","---","---","1-SHELL PALM","D105:D115",null,"D116:D116",null,null,"D108:D118",null,null,null,"---",null,"---","---"]
["BSG-FM","REGULAR -(FM)",null,null,null,"C73:D73",null,null,null,"2-THUMB LOOP","3-SHELL BACK-RIGHT","4-SHELL BACK-LEFT","---","---","5-WRISTBAND","6-LF LOOP","7-TOP WEB","8-BOTTOM WEB","9-WEB DECO","---","10-LINING","---","---","---","1-SHELL PALM","D105:D115","D108:D118",null,null,null,null,null,null,null,"---",null,"---","---"]
[null,"SIDE BAND -(FM)",null,null,null,"C73:D73",null,null,null,"2-THUMB LOOP","3-SHELL BACK-WRISTBAND RIGHT","4-SHELL BACK-LEFT","---","---","---","5-LF LOOP","6-TOP WEB","7-BOTTOM WEB","8-WEB DECO","---","10-LINING","---","---","---","1-SHELL PALM","D105:D115","D108:D118",null,null,null,null,null,null,null,"---",null,"---","---"]
[]
["LH / RH"]
[]
["右 投 LH",null,null,null,null,null,null,null,null,null,null,null,null,null,null,null,null,null,"---"]
["左 投 RH"]
[]
["QUANTITY"]
[]
[1]
[{"$f":"+A52+1","v":2}]
[{"$f":"+A53+1","v":3}]
[4]
[5]
[6]
[7]
[8]
[{"$f":"+A59+1","v":9}]
[10]
["#4 LACING WAY"]
["レギュラー\n(REGULAR)"]
["逆巻き\n(INVERTED)"]
[]
["FINGER LENGTH"]
[]
["変更なし (REGULAR)"]
["+5ｍｍ"]
["+１０ｍｍ"]
["-５ｍｍ"]
["-１０ｍｍ"]
[]
["OTHER OPTION (FINGER LENGTH ADJUSTMENT)"]
["OKG-1型",null,"OKG-4型","OKG-6型","OKG-8型","OKG-5型","RKG-SM型","RKG-ML型","RKG-LLL型"]
["A88:A92",null,"A88:A92","A88:A92","A88:A92","A88:A92","A88:A92","A88:A92","A88:A92"]
[]
["SHELL COLOR"]
[null,null,"Ｆオレンジ\nF. ORANGE #52","オレンジ\nORANGE #51","イエロー\nYELLOW #40","ブラック\nBLACK #09","ナチュラル\nNATURAL #47","レッド\nRED #62","ブルー\nBLUE #22","ネイビー\nNAVY #29","ブラウン\nBROWN #31","ピンク\nPINK #64",null,null,"ホワイト\nWHITE #03"]
[]
["LINING COLOR"]
[null,null,"共革(本体同色)\nSame as Shell","ソフトレザー(ブラック)\nSoft Leather Black"]
[]
["WELTING"]
[null,null,null,"切りハミ　ホワイト (Split)","玉ハミ (Cow Piping)"]
[null,null,null,"A82:L82","A82:L82"]
[]
["WELTING"]
[]
["切りハミ　ホワイト (Split)",null,"A79:B79"]
["玉ハミ (Cow Piping)",null,"A82:L82"]
[]
["THREAD COLOR"]
[null,null,"ブラック　\nBLACK","オレンジ\nORANGE","イエロー\nYELLOW","レッド\nRED","水色\nL.BLUE","ブラウン\nBROWN","ピンク\nPINK","ホワイト\nWHITE","グリーン\nGREEN","ゴールド\nGOLD",null,null,"ネイビー\nNAVY","ロイヤルブルー\nROYAL BLUE"]
[]
["BIAS COLOR"]
[null,null,"Ｆオレンジ\nF.ORANGE","オレンジ\nORANGE","イエロー\nYELLOW","ブラック\nBLACK","ナチュラル\nNATURAL","ホワイト\nWHITE","レッド\nRED","ブルー\nBLUE","ネイビー\nNAVY","ブラウン\nBROWN",null,null,"ピンク\nPINK","ゴールド\nGOLD"]
[]
["LACE COLOR"]
[null,null,"ブラック\nBLACK #09","レッド\nRED #62","Ｆオレンジ\nF. ORANGE #52","ナチュラル\nNATURAL #47","イエロー\nYELLOW #40","オレンジ\nORANGE #51","ホワイト\nWHITE #03","ブルー\nBLUE #22","USAタン\nTAN #202","ネイビー\nNAVY #29",null,null,"ダークブラウン\nD. BROWN #66D","ピンク\nPINK #64"]
[]
["EMBROIDERY THREAD COLOR"]
[null,null,"ライトゴールド\nLT. GOLD","ライトシルバー\nLT. SILVER","ホワイト\nWHITE","ブラック　\nBLACK","オレンジ\nORANGE","イエロー\nYELLOW","ブルー\nBLUE","ネイビー\nNAVY","レッド\nRED","ピンク\nPINK",null,null,"ブラウン\nBROWN","グリーン\nGREEN"]
[]
["EMBROIDERY FONT / CHARACTER"]
[]
["漢字\nChinese Character"]
["英活字体\nEnglish Block"]
["英筆記体\nEnglish Script"]
[]
["EMBRODERY POSITION"]
[]
["親指  (THUMB)"]
["平裏1段目 (LINING 1ST LINE)"]
["平裏2段目 (LINING 2ND LINE)"]
["CIRCLE EMBROIDERY"]
[]
["●\n必要 （NEED）"]
[]
["TYPE"]
[]
["己極オーダー(OKG)"]
["ルーキーズオーダー(RKG)"]
[" \nソフトオーダー(BSG)"]
["MODEL"]
[]
["己極オーダー(OKG)","OKG-SPC"]
["ルーキーズオーダー(RKG)","RKG-SPCJ"]
[" \nソフトオーダー(BSG)","BSG-SPCS"]

{"sheet":"OPTIONS","index":4,"n_rows":140,"n_cols":48,"rows_kept":140,"cut":false,"hidden":true,"merged":[]}
[null,"MODEL","MODEL","HOOD",null,"MODEL10","WEBS","MODEL10","WEBS2",null,null,null,null,"REGULAR","FB","CM",null,"MODEL6","WRISTBAND DESIGN",null,"MODEL6","LINING",null,null,"TYPE","MODEL",null,"MODEL","BASIC",null,"Type","Model","Fngr Length",null,null,"Fngr Length",null,"Shell",null,"Shell",null,null,null,"Model","Fingerhood/Finger patch",null,"MODEL6","Finger length"]
[null,null,null,null,null,"BSG-CM","CM (CM WEB)",null,null,null,null,null,"OKG-1型","B SHELL PALM","B SHELL PALM","B SHELL PALM",null,"OKG-1型","REGULAR",null,"OKG-1型","共革(本体同色) Same as Shell",null,null,"己極オーダー(OKG)",null,null,"OKG-SPC",null,null,"己極オーダー(OKG)","OKG-SPC",null,null,null,"加工する(NEED )",null,"SOLID",null,"SOLID",null,null,null,null,null,null,"OKG-1型"]
[null,"OKG-1型","OKG-1型","無し（NO NEED）",null,"BSG-FM","FM (FM WEB)","OKG-1型","フラット (FLAT)",null,null,null,"OKG-1型","C THUMB LOOP","C THUMB LOOP","C DECO",null,"OKG-1型","1-PC THUMB WRISTBAND",null,"OKG-1型","ソフトレザー(ブラック) Soft Leather Black",null,null,"己極オーダー(OKG)","OKG-1型",null,"OKG-SPC","OKG-1型",null,"ルーキーズオーダー(RKG)","RKG-SPCJ","加工する(NEED )",null,null,"加工する(NEED )","+5ｍｍ","COMBINATION",null,"SOLID","ブラック BLACK",null,null,"OKG-1型","無し（NO NEED）",null,"OKG-1型","加工する(NEED )"]
[null,"OKG-4型","OKG-1型","指カバー  （FGR HOOD）",null,"BSG-G","TRネット (TR NET)","OKG-1型","バスケット(BASKET)",null,null,null,"OKG-1型","D THUMB-OUT","D SHELL BACK-RIGHT","D THUMB LOOP",null,"OKG-1型","SIDE BAND",null,"OKG-4型","共革(本体同色) Same as Shell",null,null,"己極オーダー(OKG)","OKG-4型",null,"OKG-SPC","OKG-1CR 型",null,null,null,"加工しない (NO NEED)",null,null,"加工する(NEED )","+１０ｍｍ",null,null,"SOLID","ベージュCAMEL",null,null,null,"スタンダード  （FGR HOOD）",null,"OKG-1型","加工しない (NO NEED)"]
[null,"OKG-6型","OKG-1型","指当て   (FGR PATCH）",null,"BSG-G","フレームネット(FRAME NET)","OKG-1型","ｼｰﾑｳｫｰﾙ (SEAM WALL)",null,null,null,"OKG-1型","E THUMB-IN","E SHELL BACK-LEFT","E THUMB - 2ND FGR RIGHT",null,"OKG-4型","REGULAR",null,"OKG-4型","ソフトレザー(ブラック) Soft Leather Black",null,null,"己極オーダー(OKG)","OKG-6型",null,"OKG-SPC","OKG-4型",null,null,null,null,null,null,"加工する(NEED )","-５ｍｍ",null,null,"SOLID","オレンジ ORANGE",null,null,null,"指当て   (FGR PATCH）",null,"OKG-4型"]
[null,"OKG-8型","OKG-4型","無し（NO NEED）",null,"BSG-G","H","OKG-1型","ｼｰﾑｳｫｰﾙⅡ(SEAM WALL II)",null,null,null,"OKG-1型","F WRISTBAND","F WRISTBAND","F BELT STRAP",null,"OKG-4型","1-PC THUMB WRISTBAND",null,"OKG-5型","共革(本体同色) Same as Shell",null,null,"己極オーダー(OKG)","OKG-8型",null,"OKG-SPC","OKG-5型",null,null,null,null,null,null,"加工する(NEED )","-１０ｍｍ",null,null,"SOLID","イエロー YELLOW",null,null,null,null,null,"OKG-4型","加工する(NEED )"]
[null,"OKG-5型","OKG-4型","指カバー  （FGR HOOD）",null,"BSG-G","ＨＹネット (HY NET)","OKG-1型","ステッチライン (STITCH LINE)",null,null,null,"OKG-1型","G 1ST FGR-RIGHT","G LF LOOP","G 2ND FGR LEFT  - LF RIGHT",null,"OKG-4型","SIDE BAND",null,"OKG-5型","ソフトレザー(ブラック) Soft Leather Black",null,null,"己極オーダー(OKG)","OKG-5型",null,"OKG-SPC","OKG-6型",null,null,null,null,null,null,null,null,null,null,"SOLID","ナチュラル NATURAL ",null,null,"OKG-4型","無し（NO NEED）",null,"OKG-4型","加工しない (NO NEED)"]
[null,"OKG-CM型","OKG-4型","指当て   (FGR PATCH）",null,"BSG-G","ワンピース(1-PC)","OKG-1型","バスケットクロス(BASKET CROSS)",null,null,null,"OKG-1型","H 1ST FGR-LEFT","H TOP WEB","H LF LEFT ",null,"OKG-5型","REGULAR",null,"OKG-6型","共革(本体同色) Same as Shell",null,null,"己極オーダー(OKG)","OKG-CM型",null,"OKG-SPC","OKG-8型",null,null,null,null,null,null,null,null,null,null,"SOLID","レッド RED",null,null,null,"スタンダード  （FGR HOOD）",null,"OKG-5型"]
[null,"OKG-FM型","OKG-6型","無し（NO NEED）",null,"BSG-G","シャーク(SHARK)","OKG-1型","TRネット (TR NET)",null,null,null,"OKG-1型","I 2ND FGR-RIGHT","I BOTTOM WEB","I LF LOOP",null,"OKG-5型","1-PC THUMB WRISTBAND",null,"OKG-6型","ソフトレザー(ブラック) Soft Leather Black",null,null,"己極オーダー(OKG)","OKG-FM型",null,"OKG-SPC","OKG-CM型",null,null,null,null,null,null,null,null,null,null,"SOLID","ブルー BLUE",null,null,null,"指当て   (FGR PATCH）",null,"OKG-5型","加工する(NEED )"]
[null,"RKG-SM型","OKG-6型","指カバー  （FGR HOOD）",null,"BSG-G","ｼｮｰﾄｸﾛｽⅡ(SHORT CROSS II)","OKG-4型","TRネット (TR NET)",null,null,null,"OKG-1型","J 2ND FGR-LEFT","J WEB DECO",null,null,"OKG-5型","SIDE BAND",null,"OKG-8型","共革(本体同色) Same as Shell",null,null,"ルーキーズオーダー(RKG)",null,null,"OKG-SPC","OKG-CMOP型",null,null,null,null,null,null,null,null,null,null,"SOLID","ネイビー NAVY",null,null,null,null,null,"OKG-5型","加工しない (NO NEED)"]
[null,"RKG-ML型","OKG-6型","指当て   (FGR PATCH）",null,"BSG-G","ｼｮｰﾄｸﾛｽ (SHORT CROSS)","OKG-4型","フレームネット(FRAME NET)",null,null,null,"OKG-1型","K 3RD FGR-RIGHT",null,null,null,"OKG-6型","REGULAR",null,"OKG-8型","ソフトレザー(ブラック) Soft Leather Black",null,null,"ルーキーズオーダー(RKG)","RKG-SM型",null,"OKG-SPC","OKG-FM型",null,null,null,null,null,null,null,null,null,null,"SOLID","ブラウン BROWN",null,null,"OKG-6型","無し（NO NEED）",null,"OKG-6型"]
[null,"RKG-LLL型","OKG-8型","無し（NO NEED）",null,"BSG-G","ｼｮｰﾄｸﾛｽⅡJ (SHORT CROSS II J)","OKG-4型","H",null,null,null,"OKG-1型","L 3RD FGR-LEFT",null,null,null,"OKG-6型","1-PC THUMB WRISTBAND",null,"RKG-ML型","共革(本体同色) Same as Shell",null,null,"ルーキーズオーダー(RKG)","RKG-ML型",null,"RKG-SPCJ",null,null,null,null,null,null,null,null,null,null,null,"SOLID","ピンクPINK",null,null,null,"スタンダード  （FGR HOOD）",null,"OKG-6型","加工する(NEED )"]
[null,"RKG-CM型","OKG-8型","指カバー  （FGR HOOD）",null,"BSG-G","ダブルマジックIIＳJ (DOUBLE MAGIC II S J)","OKG-4型","ＨＹネット (HY NET)",null,null,null,"OKG-1型","M LF-IN",null,null,null,"OKG-6型","SIDE BAND",null,"RKG-ML型","ソフトレザー(ブラック) Soft Leather Black",null,null,"ルーキーズオーダー(RKG)","RKG-LLL型",null,"RKG-SPCJ","RKG-SM型",null,null,null,null,null,null,null,null,null,null,"SOLID","ホワイトWHITE",null,null,null,"指当て   (FGR PATCH）",null,"OKG-6型","加工しない (NO NEED)"]
[null,"RKG-FM型","OKG-8型","指当て   (FGR PATCH）",null,"BSG-G","ＨＹネットJ (HY NET J)","OKG-4型","ワンピース(1-PC)",null,null,null,"OKG-1型","N LF-OUT",null,null,null,"OKG-8型","REGULAR",null,"RKG-SM型","共革(本体同色) Same as Shell",null,null,"ルーキーズオーダー(RKG)","RKG-CM型",null,"RKG-SPCJ","RKG-ML型",null,null,null,null,null,null,null,null,null,null,"SOLID","バーニングオレンジ BURNING ORANGE",null,null,null,null,null,"OKG-8型"]
[null,null,"OKG-5型","無し（NO NEED）",null,"BSG-G","マジックＳ (MAGIC S)","OKG-4型","シャーク(SHARK)",null,null,null,"OKG-1型","O LF LOOPS",null,null,null,"OKG-8型","1-PC THUMB WRISTBAND",null,"RKG-SM型","ソフトレザー(ブラック) Soft Leather Black",null,null,"ルーキーズオーダー(RKG)","RKG-FM型",null,"RKG-SPCJ","RKG-LLL型",null,null,null,null,null,null,null,null,null,null,"COMBINATION",null,null,null,"OKG-8型","無し（NO NEED）",null,"OKG-8型","加工する(NEED )"]
[null,null,"OKG-5型","指カバー  （FGR HOOD）",null,"BSG-G","マジックⅡＳ (MAGIC II S)","OKG-4型","ｼｮｰﾄｸﾛｽⅡ(SHORT CROSS II)",null,null,null,null,null,null,null,null,"OKG-8型","SIDE BAND",null,"RKG-LLL型","共革(本体同色) Same as Shell",null,null,null,null,null,"RKG-SPCJ","RKG-CM型",null,null,null,null,null,null,null,null,null,null,null,null,null,null,null,"スタンダード  （FGR HOOD）",null,"OKG-8型","加工しない (NO NEED)"]
[null,null,"OKG-5型","指当て   (FGR PATCH）",null,"BSG-G","ＶマジックＳ (V-MAGIC S)","OKG-4型","ｼｮｰﾄｸﾛｽ (SHORT CROSS)",null,null,null,null,null,null,null,null,"RKG-ML型","REGULAR",null,"RKG-LLL型","ソフトレザー(ブラック) Soft Leather Black",null,null,null,null,null,"RKG-SPCJ","RKG-FM型",null,null,null,null,null,null,null,null,null,null,null,null,null,null,null,"指当て   (FGR PATCH）",null,"RKG-ML型"]
[null,null,"OKG-CM型","指カバー  （FGR HOOD）",null,"BSG-G","ダブルマジックＳ(DOUBLE MAGIC S)","OKG-4型","ｼｮｰﾄｸﾛｽⅡJ (SHORT CROSS II J)",null,null,null,null,null,null,null,null,"RKG-ML型","1-PC THUMB WRISTBAND",null,"OKG-CM型","共革(本体同色) Same as Shell",null,null,null,null,null,"BSG-SPCS","BSG-G",null,null,null,null,null,null,null,null,null,null,null,null,null,null,null,null,null,"RKG-ML型","加工する(NEED )"]
[null,null,"OKG-FM型","無し（NO NEED）",null,"BSG-G","バスケット II (BASKET II)","OKG-4型","ダブルマジックIIＳJ (DOUBLE MAGIC II S J)",null,null,null,null,null,null,null,null,"RKG-ML型","SIDE BAND",null,"OKG-FM型","共革(本体同色) Same as Shell",null,null,null,null,null,"BSG-SPCS","BSG-CM",null,null,null,null,null,null,null,null,null,null,null,null,null,null,"OKG-5型","無し（NO NEED）",null,"RKG-ML型","加工しない (NO NEED)"]
[null,null,"OKG-FM型","指当て   (FGR PATCH）",null,"BSG-G","フレームJ (FRAME J)","OKG-4型","ＨＹネットJ (HY NET J)",null,null,null,null,null,null,null,null,"RKG-SM型","REGULAR",null,"OKG-FM型","ソフトレザー(ブラック) Soft Leather Black",null,null,null,null,null,"BSG-SPCS","BSG-FM",null,null,null,null,null,null,null,null,null,null,null,null,null,null,null,"スタンダード  （FGR HOOD）",null,"RKG-SM型"]
[null,null,"RKG-ML型","無し（NO NEED）",null,"BSG-G","マジックⅢs (MAGIC III S)","OKG-4型","マジックＳ (MAGIC S)",null,null,null,null,null,null,null,null,"RKG-SM型","1-PC THUMB WRISTBAND",null,"RKG-CM型","共革(本体同色) Same as Shell",null,null,null,null,null,null,null,null,null,null,null,null,null,null,null,null,null,null,null,null,null,null,"指当て   (FGR PATCH）",null,"RKG-SM型","加工する(NEED )"]
[null,null,"RKG-ML型","指カバー  （FGR HOOD）",null,"OKG-1CR 型","フラット (FLAT)","OKG-4型","マジックⅡＳ (MAGIC II S)",null,null,null,null,null,null,null,null,"RKG-SM型","SIDE BAND",null,"RKG-FM型","共革(本体同色) Same as Shell",null,null,null,null,null,null,null,null,null,null,null,null,null,null,null,null,null,null,null,null,null,null,null,null,"RKG-SM型","加工しない (NO NEED)"]
[null,null,"RKG-ML型","指当て   (FGR PATCH）",null,"OKG-1CR 型","バスケット(BASKET)","OKG-4型","ＶマジックＳ (V-MAGIC S)",null,null,null,null,null,null,null,null,"RKG-LLL型","REGULAR",null,"RKG-FM型","ソフトレザー(ブラック) Soft Leather Black",null,null,null,null,null,null,null,null,null,null,null,null,null,null,null,null,null,null,null,null,null,"OKG-CMOP型","無し（NO NEED）",null,"RKG-LLL型"]
[null,null,"RKG-SM型","無し（NO NEED）",null,"OKG-1CR 型","ｼｰﾑｳｫｰﾙ (SEAM WALL)","OKG-4型","ダブルマジックＳ(DOUBLE MAGIC S)",null,null,null,null,null,null,null,null,"RKG-LLL型","1-PC THUMB WRISTBAND",null,"OKG-1CR 型","共革(本体同色) Same as Shell",null,null,null,null,null,null,null,null,null,null,null,null,null,null,null,null,null,null,null,null,null,null,"スタンダード  （FGR HOOD）",null,"RKG-LLL型","加工する(NEED )"]
[null,null,"RKG-SM型","指カバー  （FGR HOOD）",null,"OKG-1CR 型","ｼｰﾑｳｫｰﾙⅡ(SEAM WALL II)","OKG-5型","TRネット (TR NET)",null,null,null,null,null,null,null,null,"RKG-LLL型","SIDE BAND",null,"OKG-1CR 型","ソフトレザー(ブラック) Soft Leather Black",null,null,null,null,null,null,null,null,null,null,null,null,null,null,null,null,null,null,null,null,null,null,null,null,"RKG-LLL型","加工しない (NO NEED)"]
[null,null,"RKG-SM型","指当て   (FGR PATCH）",null,"OKG-1CR 型","ステッチライン (STITCH LINE)","OKG-5型","フレームネット(FRAME NET)",null,null,null,null,null,null,null,null,"OKG-CMOP型","CONVENTIONAL -(CM)",null,"BSG-G","共革(本体同色) Same as Shell",null,null,null,null,null,null,null,null,null,null,null,null,null,null,null,null,null,null,null,null,null,"OKG-CM型","無し（NO NEED）"]
[null,null,"RKG-CM型","指カバー  （FGR HOOD）",null,"OKG-1CR 型","バスケットクロス(BASKET CROSS)","OKG-5型","H",null,null,null,null,null,null,null,null,"OKG-CM型","REGULAR -(CM)",null,"BSG-G","ソフトレザー(ブラック) Soft Leather Black",null,null,null,null,null,null,null,null,null,null,null,null,null,null,null,null,null,null,null,null,null,null,"スタンダード  （FGR HOOD）"]
[null,null,"RKG-FM型","無し（NO NEED）",null,"OKG-1CR 型","TRネット (TR NET)","OKG-5型","ＨＹネット (HY NET)",null,null,null,null,null,null,null,null,"OKG-FM型",null,null,"BSG-CM","共革(本体同色) Same as Shell"]
[null,null,"RKG-FM型","指当て   (FGR PATCH）",null,"OKG-1CR 型","バスケット II (BASKET II)","OKG-5型","ワンピース(1-PC)",null,null,null,null,null,null,null,null,"OKG-FM型","REGULAR -(FM)",null,"BSG-FM","共革(本体同色) Same as Shell",null,null,null,null,null,null,null,null,null,null,null,null,null,null,null,null,null,null,null,null,null,"OKG-FM型"]
[null,null,null,null,null,"OKG-1型","フラット (FLAT)","OKG-5型","シャーク(SHARK)",null,null,null,null,null,null,null,null,"OKG-FM型","SIDE BAND -(FM)",null,"BSG-FM","ソフトレザー(ブラック) Soft Leather Black"]
[null,null,null,null,null,"OKG-1型","バスケット(BASKET)","OKG-5型","ｼｮｰﾄｸﾛｽⅡ(SHORT CROSS II)",null,null,null,null,null,null,null,null,"RKG-CM型",null,null,null,null,null,null,null,null,null,null,null,null,null,null,null,null,null,null,null,null,null,null,null,null,null,"RKG-SM型","無し（NO NEED）"]
[null,null,null,null,null,"OKG-1型","ｼｰﾑｳｫｰﾙ (SEAM WALL)","OKG-5型","ｼｮｰﾄｸﾛｽ (SHORT CROSS)",null,null,null,null,null,null,null,null,"RKG-CM型","REGULAR -(CM)",null,null,null,null,null,null,null,null,null,null,null,null,null,null,null,null,null,null,null,null,null,null,null,null,null,"スタンダード  （FGR HOOD）"]
["OKG-1型",null,null,null,null,"OKG-1型","ｼｰﾑｳｫｰﾙⅡ(SEAM WALL II)","OKG-5型","ｼｮｰﾄｸﾛｽⅡJ (SHORT CROSS II J)",null,null,null,null,null,null,null,null,"RKG-FM型",null,null,null,null,null,null,null,null,null,null,null,null,null,null,null,null,null,null,null,null,null,null,null,null,null,null,"指当て   (FGR PATCH）"]
["OKG-1CR 型",null,null,null,null,"OKG-1型","ステッチライン (STITCH LINE)","OKG-5型","ダブルマジックIIＳJ (DOUBLE MAGIC II S J)",null,null,null,null,null,null,null,null,"RKG-FM型","REGULAR -(FM)",null,null,null,null,null,null,null,null,null,null,null,null,null,null,null,null,null,null,null,null,null,null,null,null,null,null,null,"OKG-1CR 型"]
["OKG-4型",null,null,null,null,"OKG-1型","バスケットクロス(BASKET CROSS)","OKG-5型","ＨＹネットJ (HY NET J)",null,null,null,null,null,null,null,null,"OKG-1CR 型","REGULAR -(1CR)",null,null,null,null,null,null,null,null,null,null,null,null,null,null,null,null,null,null,null,null,null,null,null,null,null,null,null,"OKG-1CR 型","加工する(NEED )"]
["OKG-6型",null,null,null,null,"OKG-1型","TRネット (TR NET)","OKG-5型","マジックＳ (MAGIC S)",null,null,null,null,null,null,null,null,"OKG-1CR 型","1-PC THUMB WRISTBAND -(1CR)",null,null,null,null,null,null,null,null,null,null,null,null,null,null,null,null,null,null,null,null,null,null,null,null,null,null,null,"OKG-1CR 型","加工しない (NO NEED)"]
["OKG-8型",null,null,null,null,"OKG-1型","バスケット II (BASKET II)","OKG-5型","マジックⅡＳ (MAGIC II S)",null,null,null,null,null,null,null,null,"OKG-1CR 型","SIDE BAND -(1CR)",null,null,null,null,null,null,null,null,null,null,null,null,null,null,null,null,null,null,null,null,null,null,null,null,null,null,null,"BSG-G"]
["OKG-5型",null,null,null,null,"OKG-4型","TRネット (TR NET)","OKG-5型","ＶマジックＳ (V-MAGIC S)",null,null,null,null,null,null,null,null,"BSG-G","REGULAR",null,null,null,null,null,null,null,null,null,null,null,null,null,null,null,null,null,null,null,null,null,null,null,null,null,null,null,"BSG-G","加工する(NEED )"]
["OKG-CMOP型","CONVENTIONAL",null,null,null,null,null,null,null,null,null,null,null,null,null,null,null,"BSG-G","1-PC THUMB WRISTBAND",null,null,null,null,null,null,null,null,null,null,null,null,null,null,null,null,null,null,null,null,null,null,null,null,null,null,null,"BSG-G","加工しない (NO NEED)"]
["OKG-CM型",null,null,null,null,"OKG-4型","フレームネット(FRAME NET)","OKG-5型","ダブルマジックＳ(DOUBLE MAGIC S)",null,null,null,null,null,null,null,null,"BSG-G","SIDE BAND"]
["OKG-FM型",null,null,null,null,"OKG-4型","H","OKG-6型","TRネット (TR NET)",null,null,null,null,null,null,null,null,"BSG-CM"]
["RKG-ML型",null,null,null,null,"OKG-4型","ＨＹネット (HY NET)","OKG-6型","フレームネット(FRAME NET)",null,null,null,null,null,null,null,null,"BSG-CM","REGULAR -(CM)"]
["RKG-SM型",null,null,null,null,"OKG-4型","ワンピース(1-PC)","OKG-6型","H",null,null,null,null,null,null,null,null,"BSG-FM"]
["RKG-CM型",null,null,null,null,"OKG-4型","シャーク(SHARK)","OKG-6型","ＨＹネット (HY NET)",null,null,null,null,null,null,null,null,"BSG-FM","REGULAR -(FM)"]
["RKG-FM型",null,null,null,null,"OKG-4型","ｼｮｰﾄｸﾛｽⅡ(SHORT CROSS II)","OKG-6型","ワンピース(1-PC)",null,null,null,null,null,null,null,null,"BSG-FM","SIDE BAND -(FM)"]
["RKG-LLL型",null,null,null,null,"OKG-4型","ｼｮｰﾄｸﾛｽ (SHORT CROSS)","OKG-6型","シャーク(SHARK)"]
["BSG-G",null,null,null,null,"OKG-4型","ｼｮｰﾄｸﾛｽⅡJ (SHORT CROSS II J)","OKG-6型","ｼｮｰﾄｸﾛｽⅡ(SHORT CROSS II)"]
["BSG-CM",null,null,null,null,"OKG-4型","ダブルマジックIIＳJ (DOUBLE MAGIC II S J)","OKG-6型","ｼｮｰﾄｸﾛｽ (SHORT CROSS)"]
["BSG-FM",null,null,null,null,"OKG-4型","ＨＹネットJ (HY NET J)","OKG-6型","ｼｮｰﾄｸﾛｽⅡJ (SHORT CROSS II J)"]
[null,null,null,null,null,"OKG-4型","マジックＳ (MAGIC S)","OKG-6型","ダブルマジックIIＳJ (DOUBLE MAGIC II S J)"]
[null,null,null,null,null,"OKG-4型","マジックⅡＳ (MAGIC II S)","OKG-6型","ＨＹネットJ (HY NET J)"]
[null,null,null,null,null,"OKG-4型","ＶマジックＳ (V-MAGIC S)","OKG-6型","マジックＳ (MAGIC S)"]
[null,null,null,null,null,"OKG-4型","ダブルマジックＳ(DOUBLE MAGIC S)","OKG-6型","マジックⅡＳ (MAGIC II S)"]
["LOOKUP",null,null,null,null,"OKG-4型","バスケット II (BASKET II)","OKG-6型","ＶマジックＳ (V-MAGIC S)"]
[null,null,null,null,null,"OKG-4型","フレームJ (FRAME J)","OKG-6型","ダブルマジックＳ(DOUBLE MAGIC S)"]
["LOOKUP",null,{"$f":"+CONCATENATE('ORDER SHEET - UPDATED'!$D$18,'ORDER SHEET - UPDATED'!$F$18)","v":""},null,null,"OKG-4型","マジックⅢs (MAGIC III S)","OKG-8型","バスケットII (BASKET II)"]
[]
["OKG-1型","REGULAR",null,{"$f":"+CONCATENATE(A58,B58)","v":"OKG-1型REGULAR"},null,"OKG-5型","TRネット (TR NET)","OKG-8型","マジックＳ (MAGIC S)"]
["OKG-1型","1-PC THUMB WRISTBAND",null,"OKG-1型1-PC THUMB WRISTBAND",null,"OKG-5型","フレームネット(FRAME NET)","OKG-8型","マジックⅡＳ (MAGIC II S)"]
["OKG-4型","REGULAR",null,"OKG-4型REGULAR",null,"OKG-5型","H","OKG-8型","ＶマジックＳ (V-MAGIC S)"]
["OKG-4型","1-PC THUMB WRISTBAND",null,"OKG-4型1-PC THUMB WRISTBAND",null,"OKG-5型","ＨＹネット (HY NET)","OKG-8型","ダブルマジックＳ(DOUBLE MAGIC S)"]
["OKG-5型","REGULAR",null,"OKG-5型REGULAR",null,"OKG-5型","ワンピース(1-PC)","OKG-8型","ラインネット(LINE NET)"]
["OKG-5型","1-PC THUMB WRISTBAND",null,"OKG-5型1-PC THUMB WRISTBAND",null,"OKG-5型","シャーク(SHARK)","OKG-8型","ダブルクロス (DOUBLE CROSS)"]
["OKG-6型","REGULAR",null,"OKG-6型REGULAR",null,"OKG-5型","ｼｮｰﾄｸﾛｽⅡ(SHORT CROSS II)","OKG-8型","ダブルクロスII (DOUBLE CROSS II)"]
["OKG-6型","1-PC THUMB WRISTBAND",null,"OKG-6型1-PC THUMB WRISTBAND",null,"OKG-5型","ｼｮｰﾄｸﾛｽ (SHORT CROSS)","OKG-8型","マジッククロスS J (MAGIC CROSS S J)"]
["OKG-8型","REGULAR",null,"OKG-8型REGULAR",null,"OKG-5型","ｼｮｰﾄｸﾛｽⅡJ (SHORT CROSS II J)","OKG-CM型","CM (CM WEB)"]
["OKG-8型","1-PC THUMB WRISTBAND",null,"OKG-8型1-PC THUMB WRISTBAND",null,"OKG-5型","ダブルマジックIIＳJ (DOUBLE MAGIC II S J)","OKG-FM型","FM (FM WEB)"]
["RKG-SM型","REGULAR",null,"RKG-SM型REGULAR",null,"OKG-5型","ＨＹネットJ (HY NET J)","RKG-SM型","TRネット (TR NET)"]
["RKG-SM型","1-PC THUMB WRISTBAND",null,"RKG-SM型1-PC THUMB WRISTBAND",null,"OKG-5型","マジックＳ (MAGIC S)","RKG-SM型","フレームネット(FRAME NET)"]
["RKG-ML型","REGULAR",null,"RKG-ML型REGULAR",null,"OKG-5型","マジックⅡＳ (MAGIC II S)","RKG-SM型","H"]
["RKG-ML型","1-PC THUMB WRISTBAND",null,"RKG-ML型1-PC THUMB WRISTBAND",null,"OKG-5型","ＶマジックＳ (V-MAGIC S)","RKG-SM型","ＨＹネット (HY NET)"]
["RKG-LLL型","REGULAR",null,"RKG-LLL型REGULAR",null,"OKG-5型","ダブルマジックＳ(DOUBLE MAGIC S)","RKG-SM型","ワンピース(1-PC)"]
["RKG-LLL型","1-PC THUMB WRISTBAND",null,"RKG-LLL型1-PC THUMB WRISTBAND",null,"OKG-5型","バスケット II (BASKET II)","RKG-SM型","シャーク(SHARK)"]
["BSG-G","REGULAR",null,"BSG-GREGULAR",null,"OKG-5型","フレームJ (FRAME J)","RKG-SM型","ｼｮｰﾄｸﾛｽⅡ(SHORT CROSS II)"]
["BSG-G","1-PC THUMB WRISTBAND",null,"BSG-G1-PC THUMB WRISTBAND",null,"OKG-5型","マジックⅢs (MAGIC III S)","RKG-SM型","マジックＳ (MAGIC S)"]
["OKG-1CR 型","REGULAR -(1CR)",null,"OKG-1CR 型REGULAR -(1CR)",null,"OKG-6型","TRネット (TR NET)","RKG-SM型","マジックⅡＳ (MAGIC II S)"]
["OKG-1CR 型","1-PC THUMB WRISTBAND -(1CR)",null,"OKG-1CR 型1-PC THUMB WRISTBAND -(1CR)",null,"OKG-6型","フレームネット(FRAME NET)","RKG-SM型","ＶマジックＳ (V-MAGIC S)"]
["OKG-CM型","REGULAR -(CM)",null,"OKG-CM型REGULAR -(CM)",null,"OKG-6型","H","RKG-SM型","ダブルマジックＳ(DOUBLE MAGIC S)"]
["OKG-FM型","REGULAR -(FM)",null,"OKG-FM型REGULAR -(FM)",null,"OKG-6型","ＨＹネット (HY NET)","RKG-ML型","TRネット (TR NET)"]
["RKG-CM型","REGULAR -(CM)",null,"RKG-CM型REGULAR -(CM)",null,"OKG-6型","ワンピース(1-PC)","RKG-ML型","フレームネット(FRAME NET)"]
["RKG-FM型","REGULAR -(FM)",null,"RKG-FM型REGULAR -(FM)",null,"OKG-6型","シャーク(SHARK)","RKG-ML型","H"]
["BSG-CM","REGULAR -(CM)",null,"BSG-CMREGULAR -(CM)",null,"OKG-6型","ｼｮｰﾄｸﾛｽⅡ(SHORT CROSS II)","RKG-ML型","ＨＹネット (HY NET)"]
["BSG-FM","REGULAR -(FM)",null,"BSG-FMREGULAR -(FM)",null,"OKG-6型","ｼｮｰﾄｸﾛｽ (SHORT CROSS)","RKG-ML型","ワンピース(1-PC)"]
["OKG-1型","SIDE BAND",null,"OKG-1型SIDE BAND",null,"OKG-6型","ｼｮｰﾄｸﾛｽⅡJ (SHORT CROSS II J)","RKG-ML型","シャーク(SHARK)"]
["OKG-4型","SIDE BAND",null,"OKG-4型SIDE BAND",null,"OKG-6型","ダブルマジックIIＳJ (DOUBLE MAGIC II S J)","RKG-ML型","ｼｮｰﾄｸﾛｽⅡ(SHORT CROSS II)"]
["OKG-5型","SIDE BAND",null,"OKG-5型SIDE BAND",null,"OKG-6型","ＨＹネットJ (HY NET J)","RKG-ML型","マジックＳ (MAGIC S)"]
["OKG-6型","SIDE BAND",null,"OKG-6型SIDE BAND",null,"OKG-6型","マジックＳ (MAGIC S)","RKG-ML型","マジックⅡＳ (MAGIC II S)"]
["OKG-8型","SIDE BAND",null,"OKG-8型SIDE BAND",null,"OKG-6型","マジックⅡＳ (MAGIC II S)","RKG-ML型","ＶマジックＳ (V-MAGIC S)"]
["RKG-SM型","SIDE BAND",null,"RKG-SM型SIDE BAND",null,"OKG-6型","ＶマジックＳ (V-MAGIC S)","RKG-ML型","ダブルマジックＳ(DOUBLE MAGIC S)"]
["RKG-ML型","SIDE BAND",null,"RKG-ML型SIDE BAND",null,"OKG-6型","ダブルマジックＳ(DOUBLE MAGIC S)","RKG-LLL型","TRネット (TR NET)"]
["RKG-LLL型","SIDE BAND",null,"RKG-LLL型SIDE BAND",null,"OKG-6型","バスケット II (BASKET II)","RKG-LLL型","フレームネット(FRAME NET)"]
["OKG-1CR 型","SIDE BAND -(1CR)",null,"OKG-1CR 型SIDE BAND -(1CR)",null,"OKG-6型","フレームJ (FRAME J)","RKG-LLL型","H"]
["BSG-G","SIDE BAND",null,"BSG-GSIDE BAND",null,"OKG-6型","マジックⅢs (MAGIC III S)","RKG-LLL型","ＨＹネット (HY NET)"]
["OKG-FM型","SIDE BAND -(FM)",null,"OKG-FM型SIDE BAND -(FM)",null,"OKG-8型","ダブルマジックIIＳJ (DOUBLE MAGIC II S J)","RKG-LLL型","ワンピース(1-PC)"]
["BSG-FM","SIDE BAND -(FM)",null,"BSG-FMSIDE BAND -(FM)",null,"OKG-8型","マジックＳ (MAGIC S)","RKG-LLL型","シャーク(SHARK)"]
["OKG-CMOP型","CONVENTIONAL -(CM)",null,"OKG-CMOP型CONVENTIONAL -(CM)",null,"OKG-8型","マジックⅡＳ (MAGIC II S)","RKG-LLL型","ｼｮｰﾄｸﾛｽⅡ(SHORT CROSS II)"]
[null,null,null,null,null,"OKG-8型","ＶマジックＳ (V-MAGIC S)","RKG-LLL型","マジックＳ (MAGIC S)"]
[null,null,null,null,null,"OKG-8型","ダブルマジックＳ(DOUBLE MAGIC S)","RKG-LLL型","マジックⅡＳ (MAGIC II S)"]
[null,null,null,null,null,"OKG-8型","ラインネット(LINE NET)","RKG-LLL型","ＶマジックＳ (V-MAGIC S)"]
[null,null,null,null,null,"OKG-8型","ダブルクロス (DOUBLE CROSS)","RKG-LLL型","ダブルマジックＳ(DOUBLE MAGIC S)"]
[null,null,null,null,null,"OKG-8型","ダブルクロスII (DOUBLE CROSS II)","RKG-CM型","CM (CM WEB)"]
[null,null,null,null,null,"OKG-8型","マジッククロスS J (MAGIC CROSS S J)","RKG-FM型","FM (FM WEB)"]
[null,null,null,null,null,"OKG-8型","マジックⅢs (MAGIC III S)"]
[null,null,null,null,null,"OKG-CM型","CM (CM WEB)"]
[null,null,null,null,null,"OKG-FM型","FM (FM WEB)"]
[null,null,null,null,null,"RKG-CM型","CM (CM WEB)"]
[null,null,null,null,null,"RKG-FM型","FM (FM WEB)"]
[null,null,null,null,null,"RKG-LLL型","TRネット (TR NET)"]
[null,null,null,null,null,"RKG-LLL型","フレームネット(FRAME NET)"]
[null,null,null,null,null,"RKG-LLL型","H"]
[null,null,null,null,null,"RKG-LLL型","ＨＹネット (HY NET)"]
[null,null,null,null,null,"RKG-LLL型","ワンピース(1-PC)"]
[null,null,null,null,null,"RKG-LLL型","シャーク(SHARK)"]
[null,null,null,null,null,"RKG-LLL型","ｼｮｰﾄｸﾛｽⅡ(SHORT CROSS II)"]
[null,null,null,null,null,"RKG-LLL型","マジックＳ (MAGIC S)"]
[null,null,null,null,null,"RKG-LLL型","マジックⅡＳ (MAGIC II S)"]
[null,null,null,null,null,"RKG-LLL型","ＶマジックＳ (V-MAGIC S)"]
[null,null,null,null,null,"RKG-LLL型","ダブルマジックＳ(DOUBLE MAGIC S)"]
[null,null,null,null,null,"RKG-ML型","TRネット (TR NET)"]
[null,null,null,null,null,"RKG-ML型","フレームネット(FRAME NET)"]
[null,null,null,null,null,"RKG-ML型","H"]
[null,null,null,null,null,"RKG-ML型","ＨＹネット (HY NET)"]
[null,null,null,null,null,"RKG-ML型","ワンピース(1-PC)"]
[null,null,null,null,null,"RKG-ML型","シャーク(SHARK)"]
[null,null,null,null,null,"RKG-ML型","ｼｮｰﾄｸﾛｽⅡ(SHORT CROSS II)"]
[null,null,null,null,null,"RKG-ML型","マジックＳ (MAGIC S)"]
[null,null,null,null,null,"RKG-ML型","マジックⅡＳ (MAGIC II S)"]
[null,null,null,null,null,"RKG-ML型","ＶマジックＳ (V-MAGIC S)"]
[null,null,null,null,null,"RKG-ML型","ダブルマジックＳ(DOUBLE MAGIC S)"]
[null,null,null,null,null,"RKG-SM型","TRネット (TR NET)"]
[null,null,null,null,null,"RKG-SM型","フレームネット(FRAME NET)"]
[null,null,null,null,null,"RKG-SM型","H"]
[null,null,null,null,null,"RKG-SM型","ＨＹネット (HY NET)"]
[null,null,null,null,null,"RKG-SM型","ワンピース(1-PC)"]
[null,null,null,null,null,"RKG-SM型","シャーク(SHARK)"]
[null,null,null,null,null,"RKG-SM型","ｼｮｰﾄｸﾛｽⅡ(SHORT CROSS II)"]
[null,null,null,null,null,"RKG-SM型","マジックＳ (MAGIC S)"]
[null,null,null,null,null,"RKG-SM型","マジックⅡＳ (MAGIC II S)"]
[null,null,null,null,null,"RKG-SM型","ＶマジックＳ (V-MAGIC S)"]
[null,null,null,null,null,"RKG-SM型","ダブルマジックＳ(DOUBLE MAGIC S)"]

{"sheet":"Sheet6","index":5,"n_rows":138,"n_cols":30,"rows_kept":138,"cut":false,"hidden":true,"merged":[]}
[null,null,null,null,null,null,null,null,{"$f":"+'ORDER SHEET - UPDATED'!D18:E19","v":0},0]
[null,null,null,null,null,null,"da","da",0,0,null,{"$f":"+VLOOKUP(I1,$I$3:$J$24,2,0)","v":{"$error":"#N/A"}},null,"BSG-CM","BSG-FM","BSG-G","OKG-1CR 型","OKG-1型","OKG-4型","OKG-5型","OKG-6型","OKG-8型","OKG-CM型","OKG-FM型","RKG-CM型","RKG-FM型","RKG-LLL型","RKG-ML型","RKG-SM型","OKG-CM型"]
[null,null,null,null,null,null,"BSG-CM","CM (CM WEB)","BSG-CM",2,null,{"$f":"+IFERROR(VLOOKUP(M3,$M$3:$AD$24,$L$2,0),\"\")","v":""},"A","CM (CM WEB)","FM (FM WEB)","フレームネット(FRAME NET)","フラット (FLAT)","フラット (FLAT)","フレームネット(FRAME NET)","フレームネット(FRAME NET)","フレームネット(FRAME NET)","ダブルマジックIIＳJ (DOUBLE MAGIC II S J)","CM (CM WEB)","FM (FM WEB)","CM (CM WEB)","FM (FM WEB)","フレームネット(FRAME NET)","フレームネット(FRAME NET)","フレームネット(FRAME NET)","CM (CM WEB)"]
[null,null,null,null,null,null,"BSG-FM","FM (FM WEB)","BSG-FM",{"$f":"+J3+1","v":3},null,{"$f":"+IFERROR(VLOOKUP(M4,$M$3:$AC$24,$L$2,0),\"\")","v":""},"B",null,null,"H","バスケット(BASKET)","バスケット(BASKET)","H","H","H","マジックＳ (MAGIC S)",null,null,null,null,"H","H","H"]
[null,null,null,null,null,null,"BSG-G","フレームネット(FRAME NET)","BSG-G",{"$f":"+J4+1","v":4},null,"","C",null,null,"ＨＹネット (HY NET)","ｼｰﾑｳｫｰﾙ (SEAM WALL)","ｼｰﾑｳｫｰﾙ (SEAM WALL)","ＨＹネット (HY NET)","ＨＹネット (HY NET)","ＨＹネット (HY NET)","マジックⅡＳ (MAGIC II S)",null,null,null,null,"ＨＹネット (HY NET)","ＨＹネット (HY NET)","ＨＹネット (HY NET)"]
[null,null,null,null,null,null,"BSG-G","H","OKG-1CR 型",5,null,"","D",null,null,"ワンピース(1-PC)","ｼｰﾑｳｫｰﾙⅡ(SEAM WALL II)","ｼｰﾑｳｫｰﾙⅡ(SEAM WALL II)","ワンピース(1-PC)","ワンピース(1-PC)","ワンピース(1-PC)","ＶマジックＳ (V-MAGIC S)",null,null,null,null,"ワンピース(1-PC)","ワンピース(1-PC)","ワンピース(1-PC)"]
[null,null,null,null,null,null,"BSG-G","ＨＹネット (HY NET)","OKG-1型",6,null,"","E",null,null,"シャーク(SHARK)","ステッチライン (STITCH LINE)","ステッチライン (STITCH LINE)","シャーク(SHARK)","シャーク(SHARK)","シャーク(SHARK)","ダブルマジックＳ(DOUBLE MAGIC S)",null,null,null,null,"シャーク(SHARK)","シャーク(SHARK)","シャーク(SHARK)"]
[null,null,null,null,null,null,"BSG-G","ワンピース(1-PC)","OKG-4型",7,null,"","F",null,null,"ｼｮｰﾄｸﾛｽⅡ(SHORT CROSS II)","バスケットクロス(BASKET CROSS)","バスケットクロス(BASKET CROSS)","ｼｮｰﾄｸﾛｽⅡ(SHORT CROSS II)","ｼｮｰﾄｸﾛｽⅡ(SHORT CROSS II)","ｼｮｰﾄｸﾛｽⅡ(SHORT CROSS II)","ダブルクロス (DOUBLE CROSS)",null,null,null,null,"ｼｮｰﾄｸﾛｽⅡ(SHORT CROSS II)","ｼｮｰﾄｸﾛｽⅡ(SHORT CROSS II)","ｼｮｰﾄｸﾛｽⅡ(SHORT CROSS II)"]
[null,null,null,null,null,null,"BSG-G","シャーク(SHARK)","OKG-5型",8,null,"","G",null,null,"ｼｮｰﾄｸﾛｽ (SHORT CROSS)","バスケット J (BASKET J)","バスケット J (BASKET J)","ｼｮｰﾄｸﾛｽ (SHORT CROSS)","ｼｮｰﾄｸﾛｽ (SHORT CROSS)","ｼｮｰﾄｸﾛｽ (SHORT CROSS)","ダブルクロスII (DOUBLE CROSS II)",null,null,null,null,"マジックＳ (MAGIC S)","マジックＳ (MAGIC S)","マジックＳ (MAGIC S)"]
[null,null,null,null,null,null,"BSG-G","ｼｮｰﾄｸﾛｽⅡ(SHORT CROSS II)","OKG-6型",9,null,"","H",null,null,"ｼｮｰﾄｸﾛｽⅡJ (SHORT CROSS II J)",null,null,"ｼｮｰﾄｸﾛｽⅡJ (SHORT CROSS II J)","ｼｮｰﾄｸﾛｽⅡJ (SHORT CROSS II J)","ｼｮｰﾄｸﾛｽⅡJ (SHORT CROSS II J)","マジッククロスS J (MAGIC CROSS S J)",null,null,null,null,"マジックⅡＳ (MAGIC II S)","マジックⅡＳ (MAGIC II S)","マジックⅡＳ (MAGIC II S)"]
[null,null,null,null,null,null,"BSG-G","ｼｮｰﾄｸﾛｽ (SHORT CROSS)","OKG-8型",10,null,"","I",null,null,"ダブルマジックIIＳJ (DOUBLE MAGIC II S J)",null,null,"ダブルマジックIIＳJ (DOUBLE MAGIC II S J)","ダブルマジックIIＳJ (DOUBLE MAGIC II S J)","ダブルマジックIIＳJ (DOUBLE MAGIC II S J)","マジックⅢs (MAGIC III S)",null,null,null,null,"ＶマジックＳ (V-MAGIC S)","ＶマジックＳ (V-MAGIC S)","ＶマジックＳ (V-MAGIC S)"]
[null,null,null,null,null,null,"BSG-G","ｼｮｰﾄｸﾛｽⅡJ (SHORT CROSS II J)","OKG-CM型",11,null,"","J",null,null,"ＨＹネットJ (HY NET J)",null,null,"ＨＹネットJ (HY NET J)","ＨＹネットJ (HY NET J)","ＨＹネットJ (HY NET J)","ダブルクロスⅢｊ (DOUBLE CROSS III J)",null,null,null,null,"ダブルマジックＳ(DOUBLE MAGIC S)","ダブルマジックＳ(DOUBLE MAGIC S)","ダブルマジックＳ(DOUBLE MAGIC S)"]
[null,null,null,null,null,null,"BSG-G","ダブルマジックIIＳJ (DOUBLE MAGIC II S J)","OKG-FM型",12,null,"","K",null,null,"マジックＳ (MAGIC S)",null,null,"マジックＳ (MAGIC S)","マジックＳ (MAGIC S)","マジックＳ (MAGIC S)",null,null,null,null,null,"ＨウェブＪ (H WEB J)","ＨウェブＪ (H WEB J)","ＨウェブＪ (H WEB J)"]
[null,null,null,null,null,null,"BSG-G","ＨＹネットJ (HY NET J)","RKG-CM型",13,null,"","L",null,null,"マジックⅡＳ (MAGIC II S)",null,null,"マジックⅡＳ (MAGIC II S)","マジックⅡＳ (MAGIC II S)","マジックⅡＳ (MAGIC II S)"]
[null,null,null,null,null,null,"BSG-G","マジックＳ (MAGIC S)","RKG-FM型",14,null,"","M",null,null,"ＶマジックＳ (V-MAGIC S)",null,null,"ＶマジックＳ (V-MAGIC S)","ＶマジックＳ (V-MAGIC S)","ＶマジックＳ (V-MAGIC S)"]
[null,null,null,null,null,null,"BSG-G","マジックⅡＳ (MAGIC II S)","RKG-LLL型",15,null,"","N",null,null,"ダブルマジックＳ(DOUBLE MAGIC S)",null,null,"ダブルマジックＳ(DOUBLE MAGIC S)","ダブルマジックＳ(DOUBLE MAGIC S)","ダブルマジックＳ(DOUBLE MAGIC S)"]
[null,null,null,null,null,null,"BSG-G","ＶマジックＳ (V-MAGIC S)","RKG-ML型",16,null,"","O",null,null,"バスケット J (BASKET J)",null,null,"バスケット J (BASKET J)","バスケット J (BASKET J)","バスケット J (BASKET J)"]
[null,null,null,null,null,null,"BSG-G","ダブルマジックＳ(DOUBLE MAGIC S)","RKG-SM型",17,null,"","P",null,null,"フレームJ (FRAME J)",null,null,"フレームJ (FRAME J)","フレームJ (FRAME J)","フレームJ (FRAME J)"]
[null,null,null,null,null,null,"BSG-G","バスケット J (BASKET J)","OKG-CMOP型",18,null,"","Q",null,null,"マジックⅢs (MAGIC III S)",null,null,"マジックⅢs (MAGIC III S)","マジックⅢs (MAGIC III S)","マジックⅢs (MAGIC III S)"]
[null,null,null,null,null,null,"BSG-G","フレームJ (FRAME J)",null,null,null,"","R",null,null,"ＨウェブＪ (H WEB J)",null,null,"ＨウェブＪ (H WEB J)","ＨウェブＪ (H WEB J)","ＨウェブＪ (H WEB J)"]
[null,null,null,null,null,null,"BSG-G","マジックⅢs (MAGIC III S)",null,null,null,"","S"]
[null,null,null,null,null,null,"BSG-G","ＨウェブＪ (H WEB J)",null,null,null,"","T"]
[null,null,null,null,null,null,"OKG-1CR 型","フラット (FLAT)",null,null,null,"","U"]
[null,null,null,null,null,null,"OKG-1CR 型","バスケット(BASKET)",null,null,null,"","V"]
[null,null,null,null,null,null,"OKG-1CR 型","ｼｰﾑｳｫｰﾙ (SEAM WALL)"]
[null,null,null,null,null,null,"OKG-1CR 型","ｼｰﾑｳｫｰﾙⅡ(SEAM WALL II)"]
[null,null,null,null,null,null,"OKG-1CR 型","ステッチライン (STITCH LINE)"]
[null,null,null,null,null,null,"OKG-1CR 型","バスケットクロス(BASKET CROSS)"]
[null,null,null,null,null,null,"OKG-1CR 型","バスケット J (BASKET J)"]
[null,null,null,null,null,null,"OKG-1型","フラット (FLAT)"]
[null,null,null,null,null,null,"OKG-1型","バスケット(BASKET)"]
[null,null,null,null,null,null,"OKG-1型","ｼｰﾑｳｫｰﾙ (SEAM WALL)"]
[null,null,null,null,null,null,"OKG-1型","ｼｰﾑｳｫｰﾙⅡ(SEAM WALL II)"]
[null,null,null,null,null,null,"OKG-1型","ステッチライン (STITCH LINE)"]
[null,null,null,null,null,null,"OKG-1型","バスケットクロス(BASKET CROSS)"]
[null,null,null,null,null,null,"OKG-1型","バスケット J (BASKET J)"]
[null,null,null,null,null,null,"OKG-4型","ＨウェブＪ (H WEB J)"]
[null,null,null,null,null,null,"OKG-4型","フレームネット(FRAME NET)"]
[null,null,null,null,null,null,"OKG-4型","H"]
[null,null,null,null,null,null,"OKG-4型","ＨＹネット (HY NET)"]
[null,null,null,null,null,null,"OKG-4型","ワンピース(1-PC)"]
[null,null,null,null,null,null,"OKG-4型","シャーク(SHARK)"]
[null,null,null,null,null,null,"OKG-4型","ｼｮｰﾄｸﾛｽⅡ(SHORT CROSS II)"]
[null,null,null,null,null,null,"OKG-4型","ｼｮｰﾄｸﾛｽ (SHORT CROSS)"]
[null,null,null,null,null,null,"OKG-4型","ｼｮｰﾄｸﾛｽⅡJ (SHORT CROSS II J)"]
[null,null,null,null,null,null,"OKG-4型","ダブルマジックIIＳJ (DOUBLE MAGIC II S J)"]
[null,null,null,null,null,null,"OKG-4型","ＨＹネットJ (HY NET J)"]
[null,null,null,null,null,null,"OKG-4型","マジックＳ (MAGIC S)"]
[null,null,null,null,null,null,"OKG-4型","マジックⅡＳ (MAGIC II S)"]
[null,null,null,null,null,null,"OKG-4型","ＶマジックＳ (V-MAGIC S)"]
[null,null,null,null,null,null,"OKG-4型","ダブルマジックＳ(DOUBLE MAGIC S)"]
[null,null,null,null,null,null,"OKG-4型","バスケット J (BASKET J)"]
[null,null,null,null,null,null,"OKG-4型","フレームJ (FRAME J)"]
[null,null,null,null,null,null,"OKG-4型","マジックⅢs (MAGIC III S)"]
[null,null,null,null,null,null,"OKG-5型","ＨウェブＪ (H WEB J)"]
[null,null,null,null,null,null,"OKG-5型","フレームネット(FRAME NET)"]
[null,null,null,null,null,null,"OKG-5型","H"]
[null,null,null,null,null,null,"OKG-5型","ＨＹネット (HY NET)"]
[null,null,null,null,null,null,"OKG-5型","ワンピース(1-PC)"]
[null,null,null,null,null,null,"OKG-5型","シャーク(SHARK)"]
[null,null,null,null,null,null,"OKG-5型","ｼｮｰﾄｸﾛｽⅡ(SHORT CROSS II)"]
[null,null,null,null,null,null,"OKG-5型","ｼｮｰﾄｸﾛｽ (SHORT CROSS)"]
[null,null,null,null,null,null,"OKG-5型","ｼｮｰﾄｸﾛｽⅡJ (SHORT CROSS II J)"]
[null,null,null,null,null,null,"OKG-5型","ダブルマジックIIＳJ (DOUBLE MAGIC II S J)"]
[null,null,null,null,null,null,"OKG-5型","ＨＹネットJ (HY NET J)"]
[null,null,null,null,null,null,"OKG-5型","マジックＳ (MAGIC S)"]
[null,null,null,null,null,null,"OKG-5型","マジックⅡＳ (MAGIC II S)"]
[null,null,null,null,null,null,"OKG-5型","ＶマジックＳ (V-MAGIC S)"]
[null,null,null,null,null,null,"OKG-5型","ダブルマジックＳ(DOUBLE MAGIC S)"]
[null,null,null,null,null,null,"OKG-5型","バスケット J (BASKET J)"]
[null,null,null,null,null,null,"OKG-5型","フレームJ (FRAME J)"]
[null,null,null,null,null,null,"OKG-5型","マジックⅢs (MAGIC III S)"]
[null,null,null,null,null,null,"OKG-6型","ＨウェブＪ (H WEB J)"]
[null,null,null,null,null,null,"OKG-6型","フレームネット(FRAME NET)"]
[null,null,null,null,null,null,"OKG-6型","H"]
[null,null,null,null,null,null,"OKG-6型","ＨＹネット (HY NET)"]
[null,null,null,null,null,null,"OKG-6型","ワンピース(1-PC)"]
[null,null,null,null,null,null,"OKG-6型","シャーク(SHARK)"]
[null,null,null,null,null,null,"OKG-6型","ｼｮｰﾄｸﾛｽⅡ(SHORT CROSS II)"]
[null,null,null,null,null,null,"OKG-6型","ｼｮｰﾄｸﾛｽ (SHORT CROSS)"]
[null,null,null,null,null,null,"OKG-6型","ｼｮｰﾄｸﾛｽⅡJ (SHORT CROSS II J)"]
[null,null,null,null,null,null,"OKG-6型","ダブルマジックIIＳJ (DOUBLE MAGIC II S J)"]
[null,null,null,null,null,null,"OKG-6型","ＨＹネットJ (HY NET J)"]
[null,null,null,null,null,null,"OKG-6型","マジックＳ (MAGIC S)"]
[null,null,null,null,null,null,"OKG-6型","マジックⅡＳ (MAGIC II S)"]
[null,null,null,null,null,null,"OKG-6型","ＶマジックＳ (V-MAGIC S)"]
[null,null,null,null,null,null,"OKG-6型","ダブルマジックＳ(DOUBLE MAGIC S)"]
[null,null,null,null,null,null,"OKG-6型","バスケット J (BASKET J)"]
[null,null,null,null,null,null,"OKG-6型","フレームJ (FRAME J)"]
[null,null,null,null,null,null,"OKG-6型","マジックⅢs (MAGIC III S)"]
[null,null,null,null,null,null,"OKG-8型","ダブルマジックIIＳJ (DOUBLE MAGIC II S J)"]
[null,null,null,null,null,null,"OKG-8型","マジックＳ (MAGIC S)"]
[null,null,null,null,null,null,"OKG-8型","マジックⅡＳ (MAGIC II S)"]
[null,null,null,null,null,null,"OKG-8型","ＶマジックＳ (V-MAGIC S)"]
[null,null,null,null,null,null,"OKG-8型","ダブルマジックＳ(DOUBLE MAGIC S)"]
[null,null,null,null,null,null,"OKG-8型","ダブルクロスⅢｊ (DOUBLE CROSS III J)"]
[null,null,null,null,null,null,"OKG-8型","ダブルクロス (DOUBLE CROSS)"]
[null,null,null,null,null,null,"OKG-8型","ダブルクロスII (DOUBLE CROSS II)"]
[null,null,null,null,null,null,"OKG-8型","マジッククロスS J (MAGIC CROSS S J)"]
[null,null,null,null,null,null,"OKG-8型","マジックⅢs (MAGIC III S)"]
[null,null,null,null,null,null,"OKG-CM型","CM (CM WEB)"]
[null,null,null,null,null,null,"OKG-FM型","FM (FM WEB)"]
[null,null,null,null,null,null,"RKG-CM型","CM (CM WEB)"]
[null,null,null,null,null,null,"RKG-FM型","FM (FM WEB)"]
[null,null,null,null,null,null,"RKG-LLL型","ＨウェブＪ (H WEB J)"]
[null,null,null,null,null,null,"RKG-LLL型","フレームネット(FRAME NET)"]
[null,null,null,null,null,null,"RKG-LLL型","H"]
[null,null,null,null,null,null,"RKG-LLL型","ＨＹネット (HY NET)"]
[null,null,null,null,null,null,"RKG-LLL型","ワンピース(1-PC)"]
[null,null,null,null,null,null,"RKG-LLL型","シャーク(SHARK)"]
[null,null,null,null,null,null,"RKG-LLL型","ｼｮｰﾄｸﾛｽⅡ(SHORT CROSS II)"]
[null,null,null,null,null,null,"RKG-LLL型","マジックＳ (MAGIC S)"]
[null,null,null,null,null,null,"RKG-LLL型","マジックⅡＳ (MAGIC II S)"]
[null,null,null,null,null,null,"RKG-LLL型","ＶマジックＳ (V-MAGIC S)"]
[null,null,null,null,null,null,"RKG-LLL型","ダブルマジックＳ(DOUBLE MAGIC S)"]
[null,null,null,null,null,null,"RKG-ML型","ＨウェブＪ (H WEB J)"]
[null,null,null,null,null,null,"RKG-ML型","フレームネット(FRAME NET)"]
[null,null,null,null,null,null,"RKG-ML型","H"]
[null,null,null,null,null,null,"RKG-ML型","ＨＹネット (HY NET)"]
[null,null,null,null,null,null,"RKG-ML型","ワンピース(1-PC)"]
[null,null,null,null,null,null,"RKG-ML型","シャーク(SHARK)"]
[null,null,null,null,null,null,"RKG-ML型","ｼｮｰﾄｸﾛｽⅡ(SHORT CROSS II)"]
[null,null,null,null,null,null,"RKG-ML型","マジックＳ (MAGIC S)"]
[null,null,null,null,null,null,"RKG-ML型","マジックⅡＳ (MAGIC II S)"]
[null,null,null,null,null,null,"RKG-ML型","ＶマジックＳ (V-MAGIC S)"]
[null,null,null,null,null,null,"RKG-ML型","ダブルマジックＳ(DOUBLE MAGIC S)"]
[null,null,null,null,null,null,"RKG-SM型","ＨウェブＪ (H WEB J)"]
[null,null,null,null,null,null,"RKG-SM型","フレームネット(FRAME NET)"]
[null,null,null,null,null,null,"RKG-SM型","H"]
[null,null,null,null,null,null,"RKG-SM型","ＨＹネット (HY NET)"]
[null,null,null,null,null,null,"RKG-SM型","ワンピース(1-PC)"]
[null,null,null,null,null,null,"RKG-SM型","シャーク(SHARK)"]
[null,null,null,null,null,null,"RKG-SM型","ｼｮｰﾄｸﾛｽⅡ(SHORT CROSS II)"]
[null,null,null,null,null,null,"RKG-SM型","マジックＳ (MAGIC S)"]
[null,null,null,null,null,null,"RKG-SM型","マジックⅡＳ (MAGIC II S)"]
[null,null,null,null,null,null,"RKG-SM型","ＶマジックＳ (V-MAGIC S)"]
[null,null,null,null,null,null,"RKG-SM型","ダブルマジックＳ(DOUBLE MAGIC S)"]
[null,null,null,null,null,null,"OKG-CMOP型","CM (CM WEB)"]

{"sheet":"Sheet7","index":6,"n_rows":0,"n_cols":0,"rows_kept":0,"cut":false,"hidden":true,"merged":[]}

{"sheet":"WEB","index":7,"n_rows":30,"n_cols":4,"rows_kept":30,"cut":false,"hidden":true,"merged":[]}
["WEB","IMAGE",{"$f":"+'ORDER SHEET - UPDATED'!$F$21:$G$21","v":0},0]
["フラット (FLAT)"]
["バスケット(BASKET)"]
["ｼｰﾑｳｫｰﾙ (SEAM WALL)"]
["ｼｰﾑｳｫｰﾙⅡ(SEAM WALL II)"]
["ステッチライン (STITCH LINE)"]
["バスケットクロス(BASKET CROSS)"]
["フレームネット(FRAME NET)"]
["H"]
["ＨＹネット (HY NET)"]
["ワンピース(1-PC)"]
["シャーク(SHARK)"]
["ｼｮｰﾄｸﾛｽⅡ(SHORT CROSS II)"]
["ｼｮｰﾄｸﾛｽ (SHORT CROSS)"]
["ｼｮｰﾄｸﾛｽⅡJ (SHORT CROSS II J)"]
["ダブルマジックIIＳJ (DOUBLE MAGIC II S J)"]
["ＨＹネットJ (HY NET J)"]
["バスケット J (BASKET J)"]
["マジックＳ (MAGIC S)"]
["マジックⅡＳ (MAGIC II S)"]
["ＶマジックＳ (V-MAGIC S)"]
["ＨウェブＪ (H WEB J)"]
["ダブルマジックＳ(DOUBLE MAGIC S)"]
["ダブルクロス (DOUBLE CROSS)"]
["ダブルクロスII (DOUBLE CROSS II)"]
["マジッククロスS J (MAGIC CROSS S J)"]
["CM (CM WEB)"]
["FM (FM WEB)"]
["マジックⅢs (MAGIC III S)"]
["ダブルクロスⅢｊ (DOUBLE CROSS III J)"]

{"sheet":"WRISTBAND DESIGN","index":8,"n_rows":3,"n_cols":2,"rows_kept":3,"cut":false,"hidden":true,"merged":[]}
["WRISTBAND DESIGN","IMAGE"]
["REGULAR"]
["1-PC THUMB WRISTBAND"]

{"sheet":"LABEL ","index":9,"n_rows":32,"n_cols":2,"rows_kept":32,"cut":false,"hidden":true,"merged":[]}
["LABEL DATABASE"]
["LABEL","IMAGE"]
[]
["HPL PINK"]
["HPL S. GOLD / D. BLUE"]
["HPL S. GOLD / S. BLUE"]
["HPL S. GOLD / RED"]
["HPL R. GOLD / BLK"]
["HG S.GOLD / BLUE"]
["HG S.GOLD / GREEN"]
["HG S.GOLD / RED"]
["HP LINE"]
["SILICON GOLD"]
["LOGO GOLD"]
["LOGO D. ORANGE"]
["LOGO KT - GOLD"]
["LOGO KT - D. ORANGE"]
["BLUE / S.GOLD"]
["RED / S.GOLD"]
["GOLD"]
["SILVER"]
["RED"]
["SAX"]
["YELLOW"]
["PINK"]
["KT - NAVY/GREEN"]
["KT - SAX/GOLD"]
["HG 3D GOLD/SAX"]
["HG 3D GOLD/RED"]
["HG 3D GOLD/GREEN"]
["HG 3D GOLD/PURPLE"]
["P.GOLD"]

{"sheet":"Sheet1","index":10,"n_rows":36,"n_cols":6,"rows_kept":36,"cut":false,"hidden":true,"merged":[]}
[]
[]
[null,null,null,null,null,"Code Name"]
[null,null,null,null,null,"HPL 1"]
[null,null,null,null,null,"HPL 2"]
[null,null,null,null,null,"HPL 3"]
[null,null,null,null,null,"HPL 4"]
[null,null,null,null,null,"HPL 5"]
[null,null,null,null,null,"HPL 6"]
[null,null,null,null,null,"HPL 7"]
[null,null,null,null,null,"HPL 8"]
[null,null,null,null,null,"HPL 9"]
[null,null,null,null,null,"HPL 10"]
[null,null,null,null,null,"HPL 11"]
[null,null,null,null,null,"HPL 12"]
[null,null,null,null,null,"HPL 13"]
[null,null,null,null,null,"HPL 14"]
[null,null,null,null,null,"HPL 15"]
[null,null,null,null,null,"HPL 16"]
[null,null,null,null,null,"STD 1"]
[null,null,null,null,null,"STD 2"]
[null,null,null,null,null,"STD 3"]
[null,null,null,null,null,"STD 4"]
[null,null,null,null,null,"STD 5"]
[null,null,null,null,null,"LOG 1"]
[null,null,null,null,null,"LOG 2"]
[null,null,null,null,null,"LOG 3"]
[null,null,null,null,null,"LOG 4"]
[null,null,null,null,null,"RS 1"]
[null,null,null,null,null,"RS 2"]
[null,null,null,null,null,"RS 3"]
[null,null,null,null,null,"RS 4"]
[null,null,null,null,null,"RS 5"]
[null,null,null,null,null,"RS 6"]
[null,null,null,null,null,"RS 7"]
[null,null,null,null,null,"SIL 1"]

{"sheet":"Sheet2","index":11,"n_rows":0,"n_cols":0,"rows_kept":0,"cut":false,"hidden":true,"merged":[]}

{"sheet":"Sheet3","index":12,"n_rows":0,"n_cols":0,"rows_kept":0,"cut":false,"hidden":true,"merged":[]}

{"sheet":"Sheet4","index":13,"n_rows":0,"n_cols":0,"rows_kept":0,"cut":false,"hidden":true,"merged":[]}

{"sheet":"SEMI ORDERTRANSLATED","index":14,"n_rows":66,"n_cols":11,"rows_kept":66,"cut":false,"hidden":true,"merged":[[25,2,35,2]]}
["SEMI-ORDER RUBBERBALL"]
[]
["卸９，０００円"]
[]
["①BASIC　"]
["WKG-8021型","WKG-8024型","WKG-8026型","WKG-8028型","OKG-6515型","SCM-240型","ＳＦＭ－２４０型","ＲＫＧ－１８０３型","ＲＫＧ－１８０６型","ＲＫＧ－１８８Ｍ型","ＲＫＧ－１８８Ｆ型"]
[]
["②FINGER COVER","SELECT ONLY FOR PITCHER"]
[]
["③SHELL COLOR"]
["Ｆオレンジ\nF. ORANGE","オレンジ\nORANGE","イエロー\nYELLOW","ブラック\nBLACK","ナチュラル\nNATURAL"]
["#52","#51","#40","#09","#47"]
[]
["④BIAS COLOR"]
["Ｆオレンジ\nF.ORANGE","オレンジ\nORANGE","イエロー\nYELLOW","ブラック\nBLACK","ナチュラル\nNATURAL","ホワイト（シルバー）\nWHITE"]
["#52","#51","#40","#09","#47","#03"]
[]
["⑤LACE COLOR"]
["ブラック\nBLACK","レッド\nRED","Ｆオレンジ\nF.ORANGE","ナチュラル\nNATURAL","ﾅﾁｭﾗﾙｲｴﾛｰ\nNATURAL YELLOW","オレンジ\nORANGE"]
["#09","#62","#52","#47","#15","#51"]
[]
["ホワイト（シルバー）\nWHITE","ブルー\nRED","USAタン\nTAN","ネイビー\nNAVY","ダークブラウン\nD. BROWN"]
["#03","#22","GGETAN","#29","#66"]
[]
["⑥WEB"]
["WKG-8021型","FLAT","FIXED"]
["WKG-8024型","HY-NET"]
["WKG-8026型","SHORT CROSS II"]
["WKG-8028型","MAGIC S"]
["OKG-6515型","V MAGIC S"]
["SCM-240型","ＣＭ"]
["ＳＦＭ－２４０型","ＦＭ"]
["ＲＫＧ－１８０３型","HY-NET"]
["ＲＫＧ－１８０６型","V MAGIC S"]
["ＲＫＧ－１８８Ｍ型","ＣＭ"]
["ＲＫＧ－１８８Ｆ型","ＦＭ"]
[]
["⑦WELTING"]
["切りハミ　ホワイト (Split Gray)"]
[]
["⑧#4 LACING WAY"]
["REGULAR　OR　INVERTED"]
[]
[]
["⑨THREAD COLOR"]
["ブラック　","イエロー","ホワイト","レッド","L. BLUE","PINK"]
["BLACK","YELLOW","WHITE","RED"]
[]
["オレンジ","グリーン","ゴールド","ブラウン"]
["ORANGE","GREEN","GOLD","BROWN"]
[]
["⑩LINING COLOR"]
["SAME AS SHELL ONLY"]
[]
["⑪LABEL SELECTION"]
["PATCH　全種類より"]
[]
["OPTION"]
["1ヶ所　"]
["1色　　＠５００"]
["2色影　＠１０００"]
["2色縁　＠１５００"]
["丸型ヌキ刺繍＠７５０"]
[]
[]
["納期　⇒　基本２ヶ月"]